{"text_format":"1","workbook":"xlsx","n_sheets":6,"sheets":["Données","Bon de Commande","Historique_Commande","Signature","Financement","Feuil1"],"not_rendered":{"charts":0,"images":13,"macros":1,"external_links":2,"defined_names":12,"comments":0,"pivot_tables":0},"unopened":[],"bounds":{"document_bytes":16777216,"sheet_cells":100000,"rows_first":2000,"rows_last":500,"rows_between":2000,"halvings":0,"cell_chars":16384,"cell_head_chars":4096},"cells_cut":0,"cells_raw":0,"read":"whole","date_system":"1900"}

{"sheet":"Données","index":0,"n_rows":26,"n_cols":15,"rows_kept":26,"cut":false,"hidden":false,"merged":[]}
["Sociétés","TVA","Banque CBC","Enseignes","Mail","Téléphones","Magasins","Adresses","Code Postal","Acomptes","MOIS","ANNEE",null,"Vendeurs","FOURNISSEURS"]
["AXAN SNC","BE0889.815.147","BE89 7320 1773 5085","Quality Confort","info@qualityconfort.be","04/3882111","Aiseau Presles","rue d'Oignies, 202",6250,"BC","Janvier",2020,"OUI","ALAIN","AERRE"]
["MEUBLES FAMILY SPRL","BE0679.866.565","BE31 7320 4452 3455","Meubles Family","meublesfamily@gmail.com","019/676 675","Ans","rue de la Station, 23",4430,"VISA","Février",2021,"NON","AXEL","AVANTI"]
[null,null,null,"Meubles Confort","info@qualityconfort.be","04/3882111","Aywaille","rue Nicolas Lambercy, 23",4920,"ESPECES","Mars",2022,"En Attente","CHRISTELLE","BALILLI"]
[null,null,null,"Simbameubles","simbameubles@gmail.com","0473/590151","Dinant","rue Grande, 77",5500,"PLUSIEURS","Avril",2023,null,"DAVID","BAUWENS"]
[null,null,null,null,null,null,"Hannut","rue de Tirlemont, 31",4280,null,"Mai",2024,null,"DORIAN","BETALINE"]
[null,null,null,null,null,null,"Jumet","Chée de Bruxelles, 161",6040,null,"Juin",2025,null,"FABRICE","BSS"]
[null,null,null,null,null,null,"Quievrain","Route de Mons, 164c",7380,null,"Juillet",2026,null,"FRED","CABREIROS"]
[null,null,null,null,null,null,"Saint Georges","rue Eloi Fouarge, 9",4470,null,"Août",2027,null,"LAURET","CHINE"]
[null,null,null,null,null,null,"FACEBOOK",null,null,null,"Septembre",2028,null,"MAURICE","CONFORTLUXE"]
[null,null,null,null,null,null,"INSTAGRAM",null,null,null,"Octobre",2029,null,"MAXIME","ESPOMASA"]
[null,null,null,null,null,null,null,null,null,null,"Novembre",2030,null,"MICHAÊL","GAMI"]
[null,null,null,null,null,null,null,null,null,null,"Décembre",2031,null,"MIKE","GRADATEX"]
[null,null,null,null,null,null,null,null,null,null,null,null,null,"RICHARD","HELVETIA"]
[null,null,null,null,null,null,null,null,null,null,null,null,null,null,"INTERTAPIS"]
[null,null,null,null,null,null,null,null,null,null,null,null,null,null,"KARINTRAD"]
[null,null,null,null,null,null,"Etages",null,"TAEG","SALON",null,"CETELEM",null,null,"LIEVENS"]
[null,null,null,null,null,null,"R. de Ch",null,0,"SALLE à MANGER",null,"COFIDIS",null,null,"MATRASS"]
[null,null,null,null,null,null,"1er",null,null,"LITERIE",null,null,null,null,"ORANJE"]
[null,null,null,null,null,null,"2ième",null,null,"RIEN",null,null,null,null,"POLDIMAR"]
[null,null,null,null,null,null,"3ième",null,null,null,null,null,null,null,"ROUSSEAU"]
[null,null,null,null,null,null,"4ième",null,null,null,null,null,null,null,"SAN MARCO"]
[null,null,null,null,null,null,null,null,null,null,null,null,null,null,"SCIAE"]
[null,null,null,null,null,null,null,null,null,null,null,null,null,null,"SITWELL"]
[null,null,null,null,null,null,null,null,null,null,null,null,null,null,"VIPACK"]
[null,null,null,null,null,null,null,null,null,null,null,null,null,null,"INCONNU"]

{"sheet":"Bon de Commande","index":1,"n_rows":159,"n_cols":18,"rows_kept":159,"cut":false,"hidden":false,"merged":[[15,12,15,13],[109,0,109,2],[114,0,114,2],[117,0,117,1],[117,2,117,3],[16,0,16,3],[17,0,17,3],[18,0,18,3],[19,0,19,3],[20,0,20,3],[103,3,103,4],[102,3,102,4],[125,0,127,4],[129,1,129,2],[133,1,133,3],[136,1,136,2],[13,0,13,3],[14,0,14,3],[15,0,15,3],[119,0,120,0],[110,0,110,2],[111,0,111,2],[113,0,113,2],[90,0,92,4],[94,1,94,2],[98,1,98,2],[0,6,0,10],[0,1,0,3],[12,0,12,3],[21,0,21,4],[30,3,31,3],[30,4,31,4]]}
[{"$f":"IF(OR(A3=\"Saint Georges\",A3=\"ANS\"),\"Quality Confort\",IF(OR(A3=\"Aiseau Presles\",A3=\"DINANT\",A3=\"HANNUT\",A3=\"AYWAILLE\"),\"MEUBLES FAMILY\",IF(OR(A3=\"QUIEVRAIN\",A3=\"JUMET\"),\"MEUBLES CONFORT\",IF(OR(A3=\"FACEBOOK\",A3=\"INSTAGRAM\"),\"SIMBAMEUBLES\",))))","v":"MEUBLES FAMILY"},"BON DE COMMANDE n°",null,null,"AIS-168",null,"DESCRIPTIF B.C."]
[{"$f":"IF(OR(A3=\"Saint Georges\",A3=\"ANS\",A3=\"JUMET\",A3=\"QUIEVRAIN\"),\"04/388.21.11\",IF(OR(A3=\"HANNUT\",A3=\"Aiseau Presles\",A3=\"AYWAILLE\",A3=\"DINANT\"),\"019/676.675\",IF(OR(A3=\"FACEBOOK\",A3=\"INSTAGRAM\"),\"0473/59.01.51\")))","v":"019/676.675"},null,null,null,null,null,null,{"$f":"A1","v":"MEUBLES FAMILY"}]
["Dinant",null,"Date :","2021-02-15"]
[{"$f":"IF(A3=Données!G2,Données!H2,IF(A3=Données!G3,Données!H3,IF(A3=Données!G4,Données!H4,IF(A3=Données!G5,Données!H5,IF(A3=Données!G6,Données!H6,IF(A3=Données!G7,Données!H7,IF(A3=Données!G8,Données!H8,IF(A3=Données!G9,Données!H9,IF(A3=Données!G10,Données!H6,IF(A3=Données!G11,Données!H6,\"Adresse inexistante\"))))))))))","v":"rue Grande, 77"},null,null,null,null,null,"N° du B.C. :",{"$f":"E1","v":"AIS-168"},"Nom : ",{"$f":"C5&\" \"&E5","v":" "}]
[{"$f":"IF(A1=Données!D2,Données!E2,IF(A1=Données!D3,Données!E3,IF(A1=Données!D4,Données!E4,IF(A1=Données!D5,Données!E5,\"no mail\"))))","v":"meublesfamily@gmail.com"},"NOM :",null,"Prénom :"]
["MEUBLES FAMILY SPRL","Rue :",null,null,null,null,"P.A. :",null,"Fournisseur:"]
["rue de Tirlemont, 12","Code Postal :",null,null,null,null,null,null,null,null,null,null,null,{"$f":"IF(LEN(C7)=4,\"B\",\"F\")","v":"F"}]
["4280 - HANNUT","Localité :",null,null,null,null,null,null,"DATE","PAR QUI ???"]
[{"$f":"+IF(A6=\"MEUBLES FAMILY SPRL\",Données!B3,B2)","v":"BE0679.866.565"},"Téléphone :",null,null,null,null,"Financement envoyé :","OUI",{"$f":"D3","v":"2021-02-15"},null,null,{"$f":"IF(A6=\"MEUBLES FAMILY SPRL\",\"MEUBLES FAMILY SPRL\",\"AXAN SNC\")","v":"MEUBLES FAMILY SPRL"},null,"<== Ne PAS effacer !"]
[{"$f":"IF(A6=\"MEUBLES FAMILY SPRL\",Données!C3,C2)","v":"BE31 7320 4452 3455"},"Email :"]
["Agréé FSMA","REPRISE ?","OUI",null,null,null,"Financement à 0% :  AGIOS :"]
[null,"EMPORTE ?","NON"]
["Composition / Libellé",null,null,null,"PRIX",null,"Livraison :",{"$f":"IF(D111=\"OUI\",\"OUI\",\"NON\")","v":"OUI"}]
[null,null,null,null,null,null,"Montant de la livraison :",{"$f":"E111","v":0}]
[null,null,null,null,null,null,"Montage :",{"$f":"IF(D115=\"NON\",\"NON\",\"OUI\")","v":"NON"}]
[null,null,null,null,null,null,"Reprise :",{"$f":"IF(D115=\"NON\",\"NON\",\"OUI\")","v":"NON"},null,null,null,null,"ANNULER un B.C."]
[]
[]
[null,null,null,null,null,null,"Remarques : "]
[]
[]
[]
["DELAI DE LIVRAISON :","Mars",2021,null,{"$f":"SUM(E14:E21)","v":0}]
["URGENT ( le client accepte de recevoir la marchandise dès sa disponibilité) :",null,null,null,"OUI"]
["Signature Client + Lu et Approuvé Bon pour commande ferme et définitive",null,"ACOMPTE",null,null,null,"Vérification par : …................................................................................",null,null,null,null,null,null,null,{"$f":"E25+E26+E27","v":0},null,"<== ne pas bouger de place !!!"]
[]
["Signature Vendeur",null,"Acompte :",null,null,null,"Paraphe :"]
[null,null,"…………………….",null,null,null,null,null,null,null,null,null,null,null,"total acomptes :",null,{"$f":"E25+E26+E27","v":0},"<== ne pas bouger de place !!!"]
["Je soussigné déclare avoir reçu le …………………………………."]
["la marchandise conforme et en parfait état et l'agrée.",null,"…………………………","Euros à verser le : ",{"$f":"D3+15","v":"2021-03-02"}]
["SIGNATURE : ",null,null,"TOTAL :",{"$f":"E23-E26-E25-E27","v":0}]
[]
["REMARQUES EVENTUELLES :",null,null,null,"Mois."]
[]
["L'acheteur reconnait avoir reçu une copie des conditions de vente"]
[]
[]
[]
[]
[]
[]
[]
[]
[]
[]
[]
[null,null,null,null,null,null," "]
[]
[]
[]
[]
[]
[]
[]
[]
[]
[]
[]
[]
[]
[]
[]
[]
[]
[]
[]
[]
[]
[]
[]
[null,null,"Toutes contestation ou réclamation quant à la qualité du mobilier ou plus généralement"]
[null,null,"quant à l'exécution de la convention devra être portée à la connaissance de"]
[null,null,{"$f":"L9","v":"MEUBLES FAMILY SPRL"}]
[null,null,"par lettre recommadnée avec accusé de réception dans les 8 jours de la livraison au plus"]
[null,null,"tard. "]
[null,null,"Seuls les tribunaux de ",{"$f":"L9","v":"MEUBLES FAMILY SPRL"},"12, rue de Tirlemont,4280 Hannut"]
[null,null,"étant compétents pour connaître des litiges, sauf application des règles de procédure "]
[null,null,"d'appel au choix des parties de recourir à un tribunal arbitral."]
[]
[]
[]
[]
[]
[]
[]
[]
[]
[]
[]
[]
[]
[]
[]
[]
[null,{"$f":"A1","v":"MEUBLES FAMILY"}]
[]
["Nom :",{"$f":"C5","v":0},{"$f":"E5","v":0}]
["Bon n°",{"$f":"E1","v":"AIS-168"}]
["Date du BC :",{"$f":"D3","v":"2021-02-15"}]
["Date prévue de livraison :",{"$f":"B23","v":"Mars"},{"$f":"C23","v":2021}]
[]
["Renseignements pour la livraison :"]
["Quel étage pour la livraison ?",null,"R. de Ch","Lu et approuvé"]
["Faut-il utiliser un lift ?",null,"NON","Signature et nom du client"]
["Autorisation d'Utiliser l'ascenseur ?",null,"OUI"]
["Portes, fenêtres, escaliers sont-ils"]
["suffisamment larges  ?",null,"OUI"]
["Reprise anciens ?",null,"OUI"]
[]
["Tarif :",null,null,null,"prix"]
["livraison",null,null,{"$f":"IF(C12=\"OUI\",\"NON\",\"OUI\")","v":"OUI"}]
["Pas de reprise carton"]
[]
["Supplément LIFT : 200 €",null,null,{"$f":"IF(C104=\"OUI\",\"OUI\",\"NON\")","v":"NON"},{"$f":"IF(D114=\"NON\",\"\",200)","v":""}]
["Supplément MONTAGE MEUBLES : 300 €",null,null,"NON",{"$f":"IF(D115=\"NON\",\"\",300)","v":""}]
[]
[]
["Fait le et remis en double au client : ",null,{"$f":"B99","v":"2021-02-15"}]
[]
[{"$f":"A1","v":"MEUBLES FAMILY"}]
[null,null,null,null,"Client :"]
["Conseiller :","Responsable :",null,null,"Lu & approuvé"]
[]
[]
[]
[]
[]
[]
[]
[null,{"$f":"+A1","v":"MEUBLES FAMILY"}]
[]
["N° Commande :",{"$f":"E1","v":"AIS-168"},"Date Commande :",{"$f":"D3","v":"2021-02-15"}]
["Nom :",{"$f":"C5","v":0},{"$f":"E5","v":0}]
["Adresse: ",{"$f":"IF(C6=\"\",\"\",C6)","v":""}]
["Localité :",{"$f":"IF(C8=\"\",\"\",C8)","v":""},"Code Postal :",{"$f":"IF(C7=\"\",\"\",C7)","v":""}]
[]
["Mobilier à reprendre : ","SALON"]
[]
["Composition : …..............................................................",null,"Etat …........................................"]
["Revêtement : …..............................................................",null,"Age …............"]
[]
["Valeur de reprise ",null,"(déjà déduite sur la commande)"]
[]
[]
["REMARQUES :"]
[]
[]
[]
[]
[]
[]
[{"$f":"A1","v":"MEUBLES FAMILY"},"reprend le mobilier pré-cité à titre commercial et exceptionnel"]
["Le mobilier sera la propriété exclusive de ",{"$f":"A1","v":"MEUBLES FAMILY"},"dès la livraison du nouveau mobilier."]
["LE CLIENT CONFIRME QUE SON MEUBLE EST LIBRE DE TOUT NANTISSEMENT"]
[]
["Fait le :",{"$f":"D3","v":"2021-02-15"}]
[]
[{"$f":"A1","v":"MEUBLES FAMILY"},null,null,"Le Client"]
[null,null,null,"Lu et approuvé"]

{"sheet":"Historique_Commande","index":2,"n_rows":776,"n_cols":23,"rows_kept":776,"cut":false,"hidden":false,"merged":[]}
["N° Bon de Commande","NOM","Adresse","B/F","Téléphone","Fournisseur","Compo","Modèle","Désignation 2","Date","Prix TTC","Coéfficient","P.A. HT","Acompte","Colonne1","% Acompte","Colonne2","Vendeur","Date de Livraison","Montant Livraison","Livraison","\"R\"","\"C\""]
[]
["FCB 95","2020-12-01","Durand",null,"Léon",null,null,null,null,1950,null,null,null,1950,2100,{"$f":"J3/O3","v":0.9285714285714286},null,null,null,null,"Salon 3+2"]
["AIS-155","LeclercRoger","rue de la gare 4540 Amay","B",null,null,null,null,null,"2021-02-08",1000,{"$f":"IF(M4=\"\",\"\",K4/M4)","v":""},null,0,null,"Mars",null,null,null,null,"Mars"]
["AIS-156","KINON Bernadette","rue Vinave, 85 4480 Engis","B",null,null,null,null,null,"2021-02-08",1000,"",null,0,null,"Mars",null,null,null,null,"Mars"]
["AIS-157","ZANETTI Laurent","Bd des combattants 4540 Stockay","B",null,null,null,null,null,"2021-02-08",2000,"",null,0,null,"Mars",null,null,null,null,"Mars"]
["AIS-157","ZANETTI Laurent","Bd des combattants 4540 Stockay","B",null,null,null,null,null,"2021-02-08","PV","",null,0,null,"Mars",null,null,null,null,"Mars"]
["AIS-158","Hugo Victor","Avenue Victor Hugo, 788 75001 Paris","F",null,null,null,null,null,"2021-02-08",3000,"",null,0,null,"Mars",null,null,null,null,"Mars"]
["AIS-159"," ","  ","F",null,null,null,null,null,"2021-02-08",0,"",null,0,null,"Mars",null,null,null,null,"Mars"]
["AIS-159"," ","  ","F",null,null,null,null,null,"2021-02-08",0,"",null,0,null,"Mars",null,null,null,null,"Mars"]
["AIS-159"," ","  ","F",null,null,null,null,null,"2021-02-08",0,"",null,0,null,"Mars",null,null,null,null,"Mars"]
["AIS-159","KOUSEN Daniel","rue Buisson à la fleur, 91 4537 Verlaine","B","0495/23,05,74","BETALINE","SàM \"Nicole\"","tab 1m80 6 ch tissus","Bahut 4 portes","2021-02-08",3550,1.6745283018867925,2120,0,null,{"$f":"IF(K12=\"\",\"\",(N12/K12) )","v":0},null,"FRED",null,null,"Mars"]
["AIS-159","KOUSEN Daniel","rue Buisson à la fleur, 91 4537 Verlaine","B","0495/23,05,74","BETALINE","SàM \"Nicole\"","tab 1m80 6 ch tissus","Bahut 4 portes","2021-02-08",3550,1.6745283018867925,2120,0,null,{"$f":"IF(K13=\"\",\"\",(N13/K13) )","v":0},null,"FRED",null,null,"Mars"]
["AIS-160","Kousen Daniel","rue Buisson à la fleur, 91 4537 Verlaine","B","04/2594555","AVANTI","Divan 3+2","Velours Alcantara","rose","2021-02-08",2995,1.6189189189189188,1850,495,null,0.1652754590984975,null,"DORIAN",null,null,"Mars"]
["AIS-161","KOUSEN Daniel","rue Buisson à la fleur, 91 4537 Verlaine","B",42594555,"BETALINE","divan 3+2","Alcantara bleu",null,"2021-02-10",2595,1.7357859531772575,1495,295,null,0.11368015414258188,null,"DORIAN",null,null,"Mars"]
["AIS-162","KOUSEN Daniel","rue Buisson à la fleur, 91 4537 Verlaine","B","04/259,45,55","CABREIROS","SAM \"delhi\"",null,null,"2021-02-15",3500,1.75,2000,200,null,5.7142857142857141E-2,null,null,"Mars"]
["AIS-163","THONet Victor","Chaussée de Chokier, 11 4400 Flémalle","B","04/275,02,37","BALILLI","Divan 3+2","Alcantara Bleu",null,"2021-02-15",1999,2.0090452261306533,995,299,null,0.14957478739369684,null,"AXEL","Mars",50]
["AIS-164"," ","  ","F",null,null,null,null,null,"2021-02-15",959.42,"",null,0,null,0,null,null,"Mars",25]
["AIS-165","Bonaparte Napoléon","rue de la Grande Armée, 533 75000 Paris","F",{"$f":"33-1-545-2626","v":-3139},"BSS","Faut Relax Elect",null,null,"2021-02-15",676.05,1.8028,375,0,null,0,null,"DORIAN","Mars",25]
["AIS-166","THONET Denise","Rue Buisson à la fleur, 91 4537 Verlaine","B","04/259.45.55","AVANTI","SàM \"Carolle\"","Tab 2m + 6 ch","Bahut 4 portes","2021-02-15",4892.45,1.5288906249999998,3200,495,null,0.10117630226164806,null,"FRED","Mars",110]
["AIS-167","Legrand Léon","rue Joseph Wauters, 156 4480 Engis","B",null,"CABREIROS",null,"canapé 3+2",null,"2021-02-15",2454.04,1.8877230769230768,1300,200,null,8.1498264086974942E-2,null,"FRED","Mars",50]
[null,null,null,{"$f":"IF(A22=\"\",\"\",IF(LEN('Bon de Commande'!C34)<5,\"B\",\"F\"))","v":""},null,null,null,null,null,null,null,"",null,null,null,""]
[null,null,null,{"$f":"IF(A23=\"\",\"\",IF(LEN('Bon de Commande'!C35)<5,\"B\",\"F\"))","v":""},null,null,null,null,null,null,null,"",null,null,null,""]
[null,null,null,{"$f":"IF(A24=\"\",\"\",IF(LEN('Bon de Commande'!C36)<5,\"B\",\"F\"))","v":""},null,null,null,null,null,null,null,"",null,null,null,""]
[null,null,null,{"$f":"IF(A25=\"\",\"\",IF(LEN('Bon de Commande'!C37)<5,\"B\",\"F\"))","v":""},null,null,null,null,null,null,null,"",null,null,null,""]
[null,null,null,{"$f":"IF(A26=\"\",\"\",IF(LEN('Bon de Commande'!C38)<5,\"B\",\"F\"))","v":""},null,null,null,null,null,null,null,"",null,null,null,""]
[null,null,null,{"$f":"IF(A27=\"\",\"\",IF(LEN('Bon de Commande'!C39)<5,\"B\",\"F\"))","v":""},null,null,null,null,null,null,null,"",null,null,null,""]
[null,null,null,{"$f":"IF(A28=\"\",\"\",IF(LEN('Bon de Commande'!C40)<5,\"B\",\"F\"))","v":""},null,null,null,null,null,null,null,"",null,null,null,""]
[null,null,null,{"$f":"IF(A29=\"\",\"\",IF(LEN('Bon de Commande'!C41)<5,\"B\",\"F\"))","v":""},null,null,null,null,null,null,null,"",null,null,null,""]
[null,null,null,{"$f":"IF(A30=\"\",\"\",IF(LEN('Bon de Commande'!C42)<5,\"B\",\"F\"))","v":""},null,null,null,null,null,null,null,"",null,null,null,""]
[null,null,null,{"$f":"IF(A31=\"\",\"\",IF(LEN('Bon de Commande'!C43)<5,\"B\",\"F\"))","v":""},null,null,null,null,null,null,null,"",null,null,null,""]
[null,null,null,{"$f":"IF(A32=\"\",\"\",IF(LEN('Bon de Commande'!C44)<5,\"B\",\"F\"))","v":""},null,null,null,null,null,null,null,"",null,null,null,""]
[null,null,null,{"$f":"IF(A33=\"\",\"\",IF(LEN('Bon de Commande'!C45)<5,\"B\",\"F\"))","v":""},null,null,null,null,null,null,null,"",null,null,null,""]
[null,null,null,{"$f":"IF(A34=\"\",\"\",IF(LEN('Bon de Commande'!C46)<5,\"B\",\"F\"))","v":""},null,null,null,null,null,null,null,"",null,null,null,""]
[null,null,null,{"$f":"IF(A35=\"\",\"\",IF(LEN('Bon de Commande'!C47)<5,\"B\",\"F\"))","v":""},null,null,null,null,null,null,null,"",null,null,null,""]
[null,null,null,{"$f":"IF(A36=\"\",\"\",IF(LEN('Bon de Commande'!C48)<5,\"B\",\"F\"))","v":""},null,null,null,null,null,null,null,"",null,null,null,""]
[null,null,null,{"$f":"IF(A37=\"\",\"\",IF(LEN('Bon de Commande'!C49)<5,\"B\",\"F\"))","v":""},null,null,null,null,null,null,null,"",null,null,null,""]
[null,null,null,{"$f":"IF(A38=\"\",\"\",IF(LEN('Bon de Commande'!C50)<5,\"B\",\"F\"))","v":""},null,null,null,null,null,null,null,"",null,null,null,""]
[null,null,null,{"$f":"IF(A39=\"\",\"\",IF(LEN('Bon de Commande'!C51)<5,\"B\",\"F\"))","v":""},null,null,null,null,null,null,null,"",null,null,null,""]
[null,null,null,{"$f":"IF(A40=\"\",\"\",IF(LEN('Bon de Commande'!C52)<5,\"B\",\"F\"))","v":""},null,null,null,null,null,null,null,"",null,null,null,""]
[null,null,null,{"$f":"IF(A41=\"\",\"\",IF(LEN('Bon de Commande'!C53)<5,\"B\",\"F\"))","v":""},null,null,null,null,null,null,null,"",null,null,null,""]
[null,null,null,{"$f":"IF(A42=\"\",\"\",IF(LEN('Bon de Commande'!C54)<5,\"B\",\"F\"))","v":""},null,null,null,null,null,null,null,"",null,null,null,""]
[null,null,null,{"$f":"IF(A43=\"\",\"\",IF(LEN('Bon de Commande'!C55)<5,\"B\",\"F\"))","v":""},null,null,null,null,null,null,null,"",null,null,null,""]
[null,null,null,{"$f":"IF(A44=\"\",\"\",IF(LEN('Bon de Commande'!C56)<5,\"B\",\"F\"))","v":""},null,null,null,null,null,null,null,"",null,null,null,""]
[null,null,null,{"$f":"IF(A45=\"\",\"\",IF(LEN('Bon de Commande'!C57)<5,\"B\",\"F\"))","v":""},null,null,null,null,null,null,null,"",null,null,null,""]
[null,null,null,{"$f":"IF(A46=\"\",\"\",IF(LEN('Bon de Commande'!C58)<5,\"B\",\"F\"))","v":""},null,null,null,null,null,null,null,"",null,null,null,""]
[null,null,null,{"$f":"IF(A47=\"\",\"\",IF(LEN('Bon de Commande'!C59)<5,\"B\",\"F\"))","v":""},null,null,null,null,null,null,null,"",null,null,null,""]
[null,null,null,{"$f":"IF(A48=\"\",\"\",IF(LEN('Bon de Commande'!C60)<5,\"B\",\"F\"))","v":""},null,null,null,null,null,null,null,"",null,null,null,""]
[null,null,null,{"$f":"IF(A49=\"\",\"\",IF(LEN('Bon de Commande'!C61)<5,\"B\",\"F\"))","v":""},null,null,null,null,null,null,null,"",null,null,null,""]
[null,null,null,{"$f":"IF(A50=\"\",\"\",IF(LEN('Bon de Commande'!C62)<5,\"B\",\"F\"))","v":""},null,null,null,null,null,null,null,"",null,null,null,""]
[null,null,null,{"$f":"IF(A51=\"\",\"\",IF(LEN('Bon de Commande'!C63)<5,\"B\",\"F\"))","v":""},null,null,null,null,null,null,null,"",null,null,null,""]
[null,null,null,{"$f":"IF(A52=\"\",\"\",IF(LEN('Bon de Commande'!C64)<5,\"B\",\"F\"))","v":""},null,null,null,null,null,null,null,"",null,null,null,""]
[null,null,null,{"$f":"IF(A53=\"\",\"\",IF(LEN('Bon de Commande'!C65)<5,\"B\",\"F\"))","v":""},null,null,null,null,null,null,null,"",null,null,null,""]
[null,null,null,{"$f":"IF(A54=\"\",\"\",IF(LEN('Bon de Commande'!C66)<5,\"B\",\"F\"))","v":""},null,null,null,null,null,null,null,"",null,null,null,""]
[null,null,null,{"$f":"IF(A55=\"\",\"\",IF(LEN('Bon de Commande'!C67)<5,\"B\",\"F\"))","v":""},null,null,null,null,null,null,null,"",null,null,null,""]
[null,null,null,{"$f":"IF(A56=\"\",\"\",IF(LEN('Bon de Commande'!C68)<5,\"B\",\"F\"))","v":""},null,null,null,null,null,null,null,"",null,null,null,""]
[null,null,null,{"$f":"IF(A57=\"\",\"\",IF(LEN('Bon de Commande'!C69)<5,\"B\",\"F\"))","v":""},null,null,null,null,null,null,null,"",null,null,null,""]
[null,null,null,{"$f":"IF(A58=\"\",\"\",IF(LEN('Bon de Commande'!C70)<5,\"B\",\"F\"))","v":""},null,null,null,null,null,null,null,"",null,null,null,""]
[null,null,null,{"$f":"IF(A59=\"\",\"\",IF(LEN('Bon de Commande'!C71)<5,\"B\",\"F\"))","v":""},null,null,null,null,null,null,null,"",null,null,null,""]
[null,null,null,{"$f":"IF(A60=\"\",\"\",IF(LEN('Bon de Commande'!C72)<5,\"B\",\"F\"))","v":""},null,null,null,null,null,null,null,{"$f":"IF(M60=\"\",\"\",K60/M60)","v":""},null,null,null,""]
[null,null,null,{"$f":"IF(A61=\"\",\"\",IF(LEN('Bon de Commande'!C73)<5,\"B\",\"F\"))","v":""},null,null,null,null,null,null,null,"",null,null,null,""]
[null,null,null,{"$f":"IF(A62=\"\",\"\",IF(LEN('Bon de Commande'!C74)<5,\"B\",\"F\"))","v":""},null,null,null,null,null,null,null,"",null,null,null,""]
[null,null,null,{"$f":"IF(A63=\"\",\"\",IF(LEN('Bon de Commande'!C75)<5,\"B\",\"F\"))","v":""},null,null,null,null,null,null,null,"",null,null,null,""]
[null,null,null,{"$f":"IF(A64=\"\",\"\",IF(LEN('Bon de Commande'!C76)<5,\"B\",\"F\"))","v":""},null,null,null,null,null,null,null,"",null,null,null,""]
[null,null,null,{"$f":"IF(A65=\"\",\"\",IF(LEN('Bon de Commande'!C77)<5,\"B\",\"F\"))","v":""},null,null,null,null,null,null,null,"",null,null,null,""]
[null,null,null,{"$f":"IF(A66=\"\",\"\",IF(LEN('Bon de Commande'!C78)<5,\"B\",\"F\"))","v":""},null,null,null,null,null,null,null,"",null,null,null,""]
[null,null,null,{"$f":"IF(A67=\"\",\"\",IF(LEN('Bon de Commande'!C79)<5,\"B\",\"F\"))","v":""},null,null,null,null,null,null,null,"",null,null,null,""]
[null,null,null,{"$f":"IF(A68=\"\",\"\",IF(LEN('Bon de Commande'!C80)<5,\"B\",\"F\"))","v":""},null,null,null,null,null,null,null,"",null,null,null,""]
[null,null,null,{"$f":"IF(A69=\"\",\"\",IF(LEN('Bon de Commande'!C81)<5,\"B\",\"F\"))","v":""},null,null,null,null,null,null,null,"",null,null,null,""]
[null,null,null,{"$f":"IF(A70=\"\",\"\",IF(LEN('Bon de Commande'!C82)<5,\"B\",\"F\"))","v":""},null,null,null,null,null,null,null,"",null,null,null,""]
[null,null,null,{"$f":"IF(A71=\"\",\"\",IF(LEN('Bon de Commande'!C83)<5,\"B\",\"F\"))","v":""},null,null,null,null,null,null,null,"",null,null,null,""]
[null,null,null,{"$f":"IF(A72=\"\",\"\",IF(LEN('Bon de Commande'!C84)<5,\"B\",\"F\"))","v":""},null,null,null,null,null,null,null,"",null,null,null,""]
[null,null,null,{"$f":"IF(A73=\"\",\"\",IF(LEN('Bon de Commande'!C85)<5,\"B\",\"F\"))","v":""},null,null,null,null,null,null,null,"",null,null,null,""]
[null,null,null,{"$f":"IF(A74=\"\",\"\",IF(LEN('Bon de Commande'!C86)<5,\"B\",\"F\"))","v":""},null,null,null,null,null,null,null,"",null,null,null,""]
[null,null,null,{"$f":"IF(A75=\"\",\"\",IF(LEN('Bon de Commande'!C87)<5,\"B\",\"F\"))","v":""},null,null,null,null,null,null,null,"",null,null,null,""]
[null,null,null,{"$f":"IF(A76=\"\",\"\",IF(LEN('Bon de Commande'!C88)<5,\"B\",\"F\"))","v":""},null,null,null,null,null,null,null,"",null,null,null,""]
[null,null,null,{"$f":"IF(A77=\"\",\"\",IF(LEN('Bon de Commande'!C89)<5,\"B\",\"F\"))","v":""},null,null,null,null,null,null,null,"",null,null,null,{"$f":"IF(K77=\"\",\"\",(N77/K77) )","v":""}]
[null,null,null,{"$f":"IF(A78=\"\",\"\",IF(LEN('Bon de Commande'!C90)<5,\"B\",\"F\"))","v":""},null,null,null,null,null,null,null,"",null,null,null,""]
[null,null,null,{"$f":"IF(A79=\"\",\"\",IF(LEN('Bon de Commande'!C91)<5,\"B\",\"F\"))","v":""},null,null,null,null,null,null,null,"",null,null,null,""]
[null,null,null,{"$f":"IF(A80=\"\",\"\",IF(LEN('Bon de Commande'!C92)<5,\"B\",\"F\"))","v":""},null,null,null,null,null,null,null,"",null,null,null,""]
[null,null,null,{"$f":"IF(A81=\"\",\"\",IF(LEN('Bon de Commande'!C93)<5,\"B\",\"F\"))","v":""},null,null,null,null,null,null,null,"",null,null,null,""]
[null,null,null,{"$f":"IF(A82=\"\",\"\",IF(LEN('Bon de Commande'!C94)<5,\"B\",\"F\"))","v":""},null,null,null,null,null,null,null,"",null,null,null,""]
[null,null,null,{"$f":"IF(A83=\"\",\"\",IF(LEN('Bon de Commande'!C95)<5,\"B\",\"F\"))","v":""},null,null,null,null,null,null,null,"",null,null,null,""]
[null,null,null,{"$f":"IF(A84=\"\",\"\",IF(LEN('Bon de Commande'!C96)<5,\"B\",\"F\"))","v":""},null,null,null,null,null,null,null,"",null,null,null,""]
[null,null,null,{"$f":"IF(A85=\"\",\"\",IF(LEN('Bon de Commande'!C97)<5,\"B\",\"F\"))","v":""},null,null,null,null,null,null,null,"",null,null,null,""]
[null,null,null,{"$f":"IF(A86=\"\",\"\",IF(LEN('Bon de Commande'!C98)<5,\"B\",\"F\"))","v":""},null,null,null,null,null,null,null,"",null,null,null,""]
[null,null,null,{"$f":"IF(A87=\"\",\"\",IF(LEN('Bon de Commande'!C99)<5,\"B\",\"F\"))","v":""},null,null,null,null,null,null,null,"",null,null,null,""]
[null,null,null,{"$f":"IF(A88=\"\",\"\",IF(LEN('Bon de Commande'!C100)<5,\"B\",\"F\"))","v":""},null,null,null,null,null,null,null,"",null,null,null,""]
[null,null,null,{"$f":"IF(A89=\"\",\"\",IF(LEN('Bon de Commande'!C101)<5,\"B\",\"F\"))","v":""},null,null,null,null,null,null,null,"",null,null,null,""]
[null,null,null,{"$f":"IF(A90=\"\",\"\",IF(LEN('Bon de Commande'!C102)<5,\"B\",\"F\"))","v":""},null,null,null,null,null,null,null,"",null,null,null,""]
[null,null,null,{"$f":"IF(A91=\"\",\"\",IF(LEN('Bon de Commande'!C103)<5,\"B\",\"F\"))","v":""},null,null,null,null,null,null,null,"",null,null,null,""]
[null,null,null,{"$f":"IF(A92=\"\",\"\",IF(LEN('Bon de Commande'!C104)<5,\"B\",\"F\"))","v":""},null,null,null,null,null,null,null,"",null,null,null,""]
[null,null,null,{"$f":"IF(A93=\"\",\"\",IF(LEN('Bon de Commande'!C105)<5,\"B\",\"F\"))","v":""},null,null,null,null,null,null,null,"",null,null,null,""]
[null,null,null,{"$f":"IF(A94=\"\",\"\",IF(LEN('Bon de Commande'!C106)<5,\"B\",\"F\"))","v":""},null,null,null,null,null,null,null,"",null,null,null,""]
[null,null,null,{"$f":"IF(A95=\"\",\"\",IF(LEN('Bon de Commande'!C107)<5,\"B\",\"F\"))","v":""},null,null,null,null,null,null,null,"",null,null,null,""]
[null,null,null,{"$f":"IF(A96=\"\",\"\",IF(LEN('Bon de Commande'!C108)<5,\"B\",\"F\"))","v":""},null,null,null,null,null,null,null,"",null,null,null,""]
[null,null,null,{"$f":"IF(A97=\"\",\"\",IF(LEN('Bon de Commande'!C109)<5,\"B\",\"F\"))","v":""},null,null,null,null,null,null,null,"",null,null,null,""]
[null,null,null,{"$f":"IF(A98=\"\",\"\",IF(LEN('Bon de Commande'!C110)<5,\"B\",\"F\"))","v":""},null,null,null,null,null,null,null,"",null,null,null,""]
[null,null,null,{"$f":"IF(A99=\"\",\"\",IF(LEN('Bon de Commande'!C111)<5,\"B\",\"F\"))","v":""},null,null,null,null,null,null,null,"",null,null,null,""]
[null,null,null,{"$f":"IF(A100=\"\",\"\",IF(LEN('Bon de Commande'!C112)<5,\"B\",\"F\"))","v":""},null,null,null,null,null,null,null,"",null,null,null,""]
[null,null,null,{"$f":"IF(A101=\"\",\"\",IF(LEN('Bon de Commande'!C113)<5,\"B\",\"F\"))","v":""},null,null,null,null,null,null,null,"",null,null,null,""]
[null,null,null,{"$f":"IF(A102=\"\",\"\",IF(LEN('Bon de Commande'!C114)<5,\"B\",\"F\"))","v":""},null,null,null,null,null,null,null,"",null,null,null,""]
[null,null,null,{"$f":"IF(A103=\"\",\"\",IF(LEN('Bon de Commande'!C115)<5,\"B\",\"F\"))","v":""},null,null,null,null,null,null,null,"",null,null,null,""]
[null,null,null,{"$f":"IF(A104=\"\",\"\",IF(LEN('Bon de Commande'!C116)<5,\"B\",\"F\"))","v":""},null,null,null,null,null,null,null,"",null,null,null,""]
[null,null,null,{"$f":"IF(A105=\"\",\"\",IF(LEN('Bon de Commande'!C117)<5,\"B\",\"F\"))","v":""},null,null,null,null,null,null,null,"",null,null,null,""]
[null,null,null,{"$f":"IF(A106=\"\",\"\",IF(LEN('Bon de Commande'!C118)<5,\"B\",\"F\"))","v":""},null,null,null,null,null,null,null,"",null,null,null,""]
[null,null,null,{"$f":"IF(A107=\"\",\"\",IF(LEN('Bon de Commande'!C119)<5,\"B\",\"F\"))","v":""},null,null,null,null,null,null,null,"",null,null,null,""]
[null,null,null,{"$f":"IF(A108=\"\",\"\",IF(LEN('Bon de Commande'!C120)<5,\"B\",\"F\"))","v":""},null,null,null,null,null,null,null,"",null,null,null,""]
[null,null,null,{"$f":"IF(A109=\"\",\"\",IF(LEN('Bon de Commande'!C121)<5,\"B\",\"F\"))","v":""},null,null,null,null,null,null,null,"",null,null,null,""]
[null,null,null,{"$f":"IF(A110=\"\",\"\",IF(LEN('Bon de Commande'!C122)<5,\"B\",\"F\"))","v":""},null,null,null,null,null,null,null,"",null,null,null,""]
[null,null,null,{"$f":"IF(A111=\"\",\"\",IF(LEN('Bon de Commande'!C123)<5,\"B\",\"F\"))","v":""},null,null,null,null,null,null,null,"",null,null,null,""]
[null,null,null,{"$f":"IF(A112=\"\",\"\",IF(LEN('Bon de Commande'!C124)<5,\"B\",\"F\"))","v":""},null,null,null,null,null,null,null,"",null,null,null,""]
[null,null,null,{"$f":"IF(A113=\"\",\"\",IF(LEN('Bon de Commande'!C125)<5,\"B\",\"F\"))","v":""},null,null,null,null,null,null,null,"",null,null,null,""]
[null,null,null,{"$f":"IF(A114=\"\",\"\",IF(LEN('Bon de Commande'!C126)<5,\"B\",\"F\"))","v":""},null,null,null,null,null,null,null,"",null,null,null,""]
[null,null,null,{"$f":"IF(A115=\"\",\"\",IF(LEN('Bon de Commande'!C127)<5,\"B\",\"F\"))","v":""},null,null,null,null,null,null,null,"",null,null,null,""]
[null,null,null,{"$f":"IF(A116=\"\",\"\",IF(LEN('Bon de Commande'!C128)<5,\"B\",\"F\"))","v":""},null,null,null,null,null,null,null,"",null,null,null,""]
[null,null,null,{"$f":"IF(A117=\"\",\"\",IF(LEN('Bon de Commande'!C129)<5,\"B\",\"F\"))","v":""},null,null,null,null,null,null,null,"",null,null,null,""]
[null,null,null,{"$f":"IF(A118=\"\",\"\",IF(LEN('Bon de Commande'!C130)<5,\"B\",\"F\"))","v":""},null,null,null,null,null,null,null,"",null,null,null,""]
[null,null,null,{"$f":"IF(A119=\"\",\"\",IF(LEN('Bon de Commande'!C131)<5,\"B\",\"F\"))","v":""},null,null,null,null,null,null,null,"",null,null,null,""]
[null,null,null,{"$f":"IF(A120=\"\",\"\",IF(LEN('Bon de Commande'!C132)<5,\"B\",\"F\"))","v":""},null,null,null,null,null,null,null,"",null,null,null,""]
[null,null,null,{"$f":"IF(A121=\"\",\"\",IF(LEN('Bon de Commande'!C133)<5,\"B\",\"F\"))","v":""},null,null,null,null,null,null,null,"",null,null,null,""]
[null,null,null,{"$f":"IF(A122=\"\",\"\",IF(LEN('Bon de Commande'!C134)<5,\"B\",\"F\"))","v":""},null,null,null,null,null,null,null,"",null,null,null,""]
[null,null,null,{"$f":"IF(A123=\"\",\"\",IF(LEN('Bon de Commande'!C135)<5,\"B\",\"F\"))","v":""},null,null,null,null,null,null,null,"",null,null,null,""]
[null,null,null,{"$f":"IF(A124=\"\",\"\",IF(LEN('Bon de Commande'!C136)<5,\"B\",\"F\"))","v":""},null,null,null,null,null,null,null,{"$f":"IF(M124=\"\",\"\",K124/M124)","v":""},null,null,null,""]
[null,null,null,{"$f":"IF(A125=\"\",\"\",IF(LEN('Bon de Commande'!C137)<5,\"B\",\"F\"))","v":""},null,null,null,null,null,null,null,"",null,null,null,""]
[null,null,null,{"$f":"IF(A126=\"\",\"\",IF(LEN('Bon de Commande'!C138)<5,\"B\",\"F\"))","v":""},null,null,null,null,null,null,null,"",null,null,null,""]
[null,null,null,{"$f":"IF(A127=\"\",\"\",IF(LEN('Bon de Commande'!C139)<5,\"B\",\"F\"))","v":""},null,null,null,null,null,null,null,"",null,null,null,""]
[null,null,null,{"$f":"IF(A128=\"\",\"\",IF(LEN('Bon de Commande'!C140)<5,\"B\",\"F\"))","v":""},null,null,null,null,null,null,null,"",null,null,null,""]
[null,null,null,{"$f":"IF(A129=\"\",\"\",IF(LEN('Bon de Commande'!C141)<5,\"B\",\"F\"))","v":""},null,null,null,null,null,null,null,null,null,null,null,""]
[null,null,null,{"$f":"IF(A130=\"\",\"\",IF(LEN('Bon de Commande'!C142)<5,\"B\",\"F\"))","v":""},null,null,null,null,null,null,null,null,null,null,null,""]
[null,null,null,{"$f":"IF(A131=\"\",\"\",IF(LEN('Bon de Commande'!C143)<5,\"B\",\"F\"))","v":""},null,null,null,null,null,null,null,null,null,null,null,""]
[null,null,null,{"$f":"IF(A132=\"\",\"\",IF(LEN('Bon de Commande'!C144)<5,\"B\",\"F\"))","v":""},null,null,null,null,null,null,null,null,null,null,null,""]
[null,null,null,null,null,null,null,null,null,null,null,null,null,null,null,""]
[null,null,null,null,null,null,null,null,null,null,null,null,null,null,null,""]
[null,null,null,null,null,null,null,null,null,null,null,null,null,null,null,""]
[null,null,null,null,null,null,null,null,null,null,null,null,null,null,null,""]
[null,null,null,null,null,null,null,null,null,null,null,null,null,null,null,""]
[null,null,null,null,null,null,null,null,null,null,null,null,null,null,null,""]
[null,null,null,null,null,null,null,null,null,null,null,null,null,null,null,""]
[null,null,null,null,null,null,null,null,null,null,null,null,null,null,null,""]
[null,null,null,null,null,null,null,null,null,null,null,null,null,null,null,{"$f":"IF(K141=\"\",\"\",(N141/K141) )","v":""}]
[null,null,null,null,null,null,null,null,null,null,null,null,null,null,null,""]
[null,null,null,null,null,null,null,null,null,null,null,null,null,null,null,""]
[null,null,null,null,null,null,null,null,null,null,null,null,null,null,null,""]
[null,null,null,null,null,null,null,null,null,null,null,null,null,null,null,""]
[null,null,null,null,null,null,null,null,null,null,null,null,null,null,null,""]
[null,null,null,null,null,null,null,null,null,null,null,null,null,null,null,""]
[null,null,null,null,null,null,null,null,null,null,null,null,null,null,null,""]
[null,null,null,null,null,null,null,null,null,null,null,null,null,null,null,""]
[null,null,null,null,null,null,null,null,null,null,null,null,null,null,null,""]
[null,null,null,null,null,null,null,null,null,null,null,null,null,null,null,""]
[null,null,null,null,null,null,null,null,null,null,null,null,null,null,null,""]
[null,null,null,null,null,null,null,null,null,null,null,null,null,null,null,""]
[null,null,null,null,null,null,null,null,null,null,null,null,null,null,null,""]
[null,null,null,null,null,null,null,null,null,null,null,null,null,null,null,""]
[null,null,null,null,null,null,null,null,null,null,null,null,null,null,null,""]
[null,null,null,null,null,null,null,null,null,null,null,null,null,null,null,""]
[null,null,null,null,null,null,null,null,null,null,null,null,null,null,null,""]
[null,null,null,null,null,null,null,null,null,null,null,null,null,null,null,""]
[null,null,null,null,null,null,null,null,null,null,null,null,null,null,null,""]
[null,null,null,null,null,null,null,null,null,null,null,null,null,null,null,""]
[null,null,null,null,null,null,null,null,null,null,null,null,null,null,null,""]
[null,null,null,null,null,null,null,null,null,null,null,null,null,null,null,""]
[null,null,null,null,null,null,null,null,null,null,null,null,null,null,null,""]
[null,null,null,null,null,null,null,null,null,null,null,null,null,null,null,""]
[null,null,null,null,null,null,null,null,null,null,null,null,null,null,null,""]
[null,null,null,null,null,null,null,null,null,null,null,null,null,null,null,""]
[null,null,null,null,null,null,null,null,null,null,null,null,null,null,null,""]
[null,null,null,null,null,null,null,null,null,null,null,null,null,null,null,""]
[null,null,null,null,null,null,null,null,null,null,null,null,null,null,null,""]
[null,null,null,null,null,null,null,null,null,null,null,null,null,null,null,""]
[null,null,null,null,null,null,null,null,null,null,null,null,null,null,null,""]
[null,null,null,null,null,null,null,null,null,null,null,null,null,null,null,""]
[null,null,null,null,null,null,null,null,null,null,null,null,null,null,null,""]
[null,null,null,null,null,null,null,null,null,null,null,null,null,null,null,""]
[null,null,null,null,null,null,null,null,null,null,null,null,null,null,null,""]
[null,null,null,null,null,null,null,null,null,null,null,null,null,null,null,""]
[null,null,null,null,null,null,null,null,null,null,null,null,null,null,null,""]
[null,null,null,null,null,null,null,null,null,null,null,null,null,null,null,""]
[null,null,null,null,null,null,null,null,null,null,null,null,null,null,null,""]
[null,null,null,null,null,null,null,null,null,null,null,null,null,null,null,""]
[null,null,null,null,null,null,null,null,null,null,null,null,null,null,null,""]
[null,null,null,null,null,null,null,null,null,null,null,null,null,null,null,""]
[null,null,null,null,null,null,null,null,null,null,null,null,null,null,null,""]
[null,null,null,null,null,null,null,null,null,null,null,null,null,null,null,""]
[null,null,null,null,null,null,null,null,null,null,null,null,null,null,null,{"$f":"IF(K186=\"\",\"\",(N186/K186) )","v":""}]
[null,null,null,null,null,null,null,null,null,null,null,null,null,null,null,""]
[null,null,null,null,null,null,null,null,null,null,null,null,null,null,null,""]
[null,null,null,null,null,null,null,null,null,null,null,null,null,null,null,""]
[null,null,null,null,null,null,null,null,null,null,null,null,null,null,null,""]
[null,null,null,null,null,null,null,null,null,null,null,null,null,null,null,""]
[null,null,null,null,null,null,null,null,null,null,null,null,null,null,null,""]
[null,null,null,null,null,null,null,null,null,null,null,null,null,null,null,""]
[null,null,null,null,null,null,null,null,null,null,null,null,null,null,null,""]
[null,null,null,null,null,null,null,null,null,null,null,null,null,null,null,""]
[null,null,null,null,null,null,null,null,null,null,null,null,null,null,null,""]
[null,null,null,null,null,null,null,null,null,null,null,null,null,null,null,""]
[null,null,null,null,null,null,null,null,null,null,null,null,null,null,null,""]
[null,null,null,null,null,null,null,null,null,null,null,null,null,null,null,""]
[null,null,null,null,null,null,null,null,null,null,null,null,null,null,null,""]
[null,null,null,null,null,null,null,null,null,null,null,null,null,null,null,""]
[null,null,null,null,null,null,null,null,null,null,null,null,null,null,null,""]
[null,null,null,null,null,null,null,null,null,null,null,null,null,null,null,""]
[null,null,null,null,null,null,null,null,null,null,null,null,null,null,null,""]
[null,null,null,null,null,null,null,null,null,null,null,null,null,null,null,{"$f":"IF(K205=\"\",\"\",(N205/K205) )","v":""}]
[null,null,null,null,null,null,null,null,null,null,null,null,null,null,null,""]
[null,null,null,null,null,null,null,null,null,null,null,null,null,null,null,""]
[null,null,null,null,null,null,null,null,null,null,null,null,null,null,null,""]
[null,null,null,null,null,null,null,null,null,null,null,null,null,null,null,""]
[null,null,null,null,null,null,null,null,null,null,null,null,null,null,null,""]
[null,null,null,null,null,null,null,null,null,null,null,null,null,null,null,""]
[null,null,null,null,null,null,null,null,null,null,null,null,null,null,null,""]
[null,null,null,null,null,null,null,null,null,null,null,null,null,null,null,""]
[null,null,null,null,null,null,null,null,null,null,null,null,null,null,null,""]
[null,null,null,null,null,null,null,null,null,null,null,null,null,null,null,""]
[null,null,null,null,null,null,null,null,null,null,null,null,null,null,null,""]
[null,null,null,null,null,null,null,null,null,null,null,null,null,null,null,""]
[null,null,null,null,null,null,null,null,null,null,null,null,null,null,null,""]
[null,null,null,null,null,null,null,null,null,null,null,null,null,null,null,""]
[null,null,null,null,null,null,null,null,null,null,null,null,null,null,null,""]
[null,null,null,null,null,null,null,null,null,null,null,null,null,null,null,""]
[null,null,null,null,null,null,null,null,null,null,null,null,null,null,null,""]
[null,null,null,null,null,null,null,null,null,null,null,null,null,null,null,""]
[null,null,null,null,null,null,null,null,null,null,null,null,null,null,null,""]
[null,null,null,null,null,null,null,null,null,null,null,null,null,null,null,""]
[null,null,null,null,null,null,null,null,null,null,null,null,null,null,null,""]
[null,null,null,null,null,null,null,null,null,null,null,null,null,null,null,""]
[null,null,null,null,null,null,null,null,null,null,null,null,null,null,null,""]
[null,null,null,null,null,null,null,null,null,null,null,null,null,null,null,""]
[null,null,null,null,null,null,null,null,null,null,null,null,null,null,null,""]
[null,null,null,null,null,null,null,null,null,null,null,null,null,null,null,""]
[null,null,null,null,null,null,null,null,null,null,null,null,null,null,null,""]
[null,null,null,null,null,null,null,null,null,null,null,null,null,null,null,""]
[null,null,null,null,null,null,null,null,null,null,null,null,null,null,null,""]
[null,null,null,null,null,null,null,null,null,null,null,null,null,null,null,""]
[null,null,null,null,null,null,null,null,null,null,null,null,null,null,null,""]
[null,null,null,null,null,null,null,null,null,null,null,null,null,null,null,""]
[null,null,null,null,null,null,null,null,null,null,null,null,null,null,null,""]
[null,null,null,null,null,null,null,null,null,null,null,null,null,null,null,""]
[null,null,null,null,null,null,null,null,null,null,null,null,null,null,null,""]
[null,null,null,null,null,null,null,null,null,null,null,null,null,null,null,""]
[null,null,null,null,null,null,null,null,null,null,null,null,null,null,null,""]
[null,null,null,null,null,null,null,null,null,null,null,null,null,null,null,""]
[null,null,null,null,null,null,null,null,null,null,null,null,null,null,null,""]
[null,null,null,null,null,null,null,null,null,null,null,null,null,null,null,""]
[null,null,null,null,null,null,null,null,null,null,null,null,null,null,null,""]
[null,null,null,null,null,null,null,null,null,null,null,null,null,null,null,""]
[null,null,null,null,null,null,null,null,null,null,null,null,null,null,null,""]
[null,null,null,null,null,null,null,null,null,null,null,null,null,null,null,""]
[null,null,null,null,null,null,null,null,null,null,null,null,null,null,null,""]
[null,null,null,null,null,null,null,null,null,null,null,null,null,null,null,""]
[null,null,null,null,null,null,null,null,null,null,null,null,null,null,null,""]
[null,null,null,null,null,null,null,null,null,null,null,null,null,null,null,""]
[null,null,null,null,null,null,null,null,null,null,null,null,null,null,null,""]
[null,null,null,null,null,null,null,null,null,null,null,null,null,null,null,""]
[null,null,null,null,null,null,null,null,null,null,null,null,null,null,null,""]
[null,null,null,null,null,null,null,null,null,null,null,null,null,null,null,""]
[null,null,null,null,null,null,null,null,null,null,null,null,null,null,null,""]
[null,null,null,null,null,null,null,null,null,null,null,null,null,null,null,""]
[null,null,null,null,null,null,null,null,null,null,null,null,null,null,null,""]
[null,null,null,null,null,null,null,null,null,null,null,null,null,null,null,""]
[null,null,null,null,null,null,null,null,null,null,null,null,null,null,null,""]
[null,null,null,null,null,null,null,null,null,null,null,null,null,null,null,""]
[null,null,null,null,null,null,null,null,null,null,null,null,null,null,null,""]
[null,null,null,null,null,null,null,null,null,null,null,null,null,null,null,""]
[null,null,null,null,null,null,null,null,null,null,null,null,null,null,null,""]
[null,null,null,null,null,null,null,null,null,null,null,null,null,null,null,""]
[null,null,null,null,null,null,null,null,null,null,null,null,null,null,null,""]
[null,null,null,null,null,null,null,null,null,null,null,null,null,null,null,{"$f":"IF(K269=\"\",\"\",(N269/K269) )","v":""}]
[null,null,null,null,null,null,null,null,null,null,null,null,null,null,null,""]
[null,null,null,null,null,null,null,null,null,null,null,null,null,null,null,""]
[null,null,null,null,null,null,null,null,null,null,null,null,null,null,null,""]
[null,null,null,null,null,null,null,null,null,null,null,null,null,null,null,""]
[null,null,null,null,null,null,null,null,null,null,null,null,null,null,null,""]
[null,null,null,null,null,null,null,null,null,null,null,null,null,null,null,""]
[null,null,null,null,null,null,null,null,null,null,null,null,null,null,null,""]
[null,null,null,null,null,null,null,null,null,null,null,null,null,null,null,""]
[null,null,null,null,null,null,null,null,null,null,null,null,null,null,null,""]
[null,null,null,null,null,null,null,null,null,null,null,null,null,null,null,""]
[null,null,null,null,null,null,null,null,null,null,null,null,null,null,null,""]
[null,null,null,null,null,null,null,null,null,null,null,null,null,null,null,""]
[null,null,null,null,null,null,null,null,null,null,null,null,null,null,null,""]
[null,null,null,null,null,null,null,null,null,null,null,null,null,null,null,""]
[null,null,null,null,null,null,null,null,null,null,null,null,null,null,null,""]
[null,null,null,null,null,null,null,null,null,null,null,null,null,null,null,""]
[null,null,null,null,null,null,null,null,null,null,null,null,null,null,null,""]
[null,null,null,null,null,null,null,null,null,null,null,null,null,null,null,""]
[null,null,null,null,null,null,null,null,null,null,null,null,null,null,null,""]
[null,null,null,null,null,null,null,null,null,null,null,null,null,null,null,""]
[null,null,null,null,null,null,null,null,null,null,null,null,null,null,null,""]
[null,null,null,null,null,null,null,null,null,null,null,null,null,null,null,""]
[null,null,null,null,null,null,null,null,null,null,null,null,null,null,null,""]
[null,null,null,null,null,null,null,null,null,null,null,null,null,null,null,""]
[null,null,null,null,null,null,null,null,null,null,null,null,null,null,null,""]
[null,null,null,null,null,null,null,null,null,null,null,null,null,null,null,""]
[null,null,null,null,null,null,null,null,null,null,null,null,null,null,null,""]
[null,null,null,null,null,null,null,null,null,null,null,null,null,null,null,""]
[null,null,null,null,null,null,null,null,null,null,null,null,null,null,null,""]
[null,null,null,null,null,null,null,null,null,null,null,null,null,null,null,""]
[null,null,null,null,null,null,null,null,null,null,null,null,null,null,null,""]
[null,null,null,null,null,null,null,null,null,null,null,null,null,null,null,""]
[null,null,null,null,null,null,null,null,null,null,null,null,null,null,null,""]
[null,null,null,null,null,null,null,null,null,null,null,null,null,null,null,""]
[null,null,null,null,null,null,null,null,null,null,null,null,null,null,null,""]
[null,null,null,null,null,null,null,null,null,null,null,null,null,null,null,""]
[null,null,null,null,null,null,null,null,null,null,null,null,null,null,null,""]
[null,null,null,null,null,null,null,null,null,null,null,null,null,null,null,""]
[null,null,null,null,null,null,null,null,null,null,null,null,null,null,null,""]
[null,null,null,null,null,null,null,null,null,null,null,null,null,null,null,""]
[null,null,null,null,null,null,null,null,null,null,null,null,null,null,null,""]
[null,null,null,null,null,null,null,null,null,null,null,null,null,null,null,""]
[null,null,null,null,null,null,null,null,null,null,null,null,null,null,null,""]
[null,null,null,null,null,null,null,null,null,null,null,null,null,null,null,""]
[null,null,null,null,null,null,null,null,null,null,null,null,null,null,null,""]
[null,null,null,null,null,null,null,null,null,null,null,null,null,null,null,""]
[null,null,null,null,null,null,null,null,null,null,null,null,null,null,null,""]
[null,null,null,null,null,null,null,null,null,null,null,null,null,null,null,""]
[null,null,null,null,null,null,null,null,null,null,null,null,null,null,null,""]
[null,null,null,null,null,null,null,null,null,null,null,null,null,null,null,""]
[null,null,null,null,null,null,null,null,null,null,null,null,null,null,null,""]
[null,null,null,null,null,null,null,null,null,null,null,null,null,null,null,""]
[null,null,null,null,null,null,null,null,null,null,null,null,null,null,null,""]
[null,null,null,null,null,null,null,null,null,null,null,null,null,null,null,""]
[null,null,null,null,null,null,null,null,null,null,null,null,null,null,null,""]
[null,null,null,null,null,null,null,null,null,null,null,null,null,null,null,""]
[null,null,null,null,null,null,null,null,null,null,null,null,null,null,null,""]
[null,null,null,null,null,null,null,null,null,null,null,null,null,null,null,""]
[null,null,null,null,null,null,null,null,null,null,null,null,null,null,null,""]
[null,null,null,null,null,null,null,null,null,null,null,null,null,null,null,""]
[null,null,null,null,null,null,null,null,null,null,null,null,null,null,null,""]
[null,null,null,null,null,null,null,null,null,null,null,null,null,null,null,""]
[null,null,null,null,null,null,null,null,null,null,null,null,null,null,null,""]
[null,null,null,null,null,null,null,null,null,null,null,null,null,null,null,{"$f":"IF(K333=\"\",\"\",(N333/K333) )","v":""}]
[null,null,null,null,null,null,null,null,null,null,null,null,null,null,null,""]
[null,null,null,null,null,null,null,null,null,null,null,null,null,null,null,""]
[null,null,null,null,null,null,null,null,null,null,null,null,null,null,null,""]
[null,null,null,null,null,null,null,null,null,null,null,null,null,null,null,""]
[null,null,null,null,null,null,null,null,null,null,null,null,null,null,null,""]
[null,null,null,null,null,null,null,null,null,null,null,null,null,null,null,""]
[null,null,null,null,null,null,null,null,null,null,null,null,null,null,null,""]
[null,null,null,null,null,null,null,null,null,null,null,null,null,null,null,""]
[null,null,null,null,null,null,null,null,null,null,null,null,null,null,null,""]
[null,null,null,null,null,null,null,null,null,null,null,null,null,null,null,""]
[null,null,null,null,null,null,null,null,null,null,null,null,null,null,null,""]
[null,null,null,null,null,null,null,null,null,null,null,null,null,null,null,""]
[null,null,null,null,null,null,null,null,null,null,null,null,null,null,null,""]
[null,null,null,null,null,null,null,null,null,null,null,null,null,null,null,""]
[null,null,null,null,null,null,null,null,null,null,null,null,null,null,null,""]
[null,null,null,null,null,null,null,null,null,null,null,null,null,null,null,""]
[null,null,null,null,null,null,null,null,null,null,null,null,null,null,null,""]
[null,null,null,null,null,null,null,null,null,null,null,null,null,null,null,""]
[null,null,null,null,null,null,null,null,null,null,null,null,null,null,null,""]
[null,null,null,null,null,null,null,null,null,null,null,null,null,null,null,""]
[null,null,null,null,null,null,null,null,null,null,null,null,null,null,null,""]
[null,null,null,null,null,null,null,null,null,null,null,null,null,null,null,""]
[null,null,null,null,null,null,null,null,null,null,null,null,null,null,null,""]
[null,null,null,null,null,null,null,null,null,null,null,null,null,null,null,""]
[null,null,null,null,null,null,null,null,null,null,null,null,null,null,null,""]
[null,null,null,null,null,null,null,null,null,null,null,null,null,null,null,""]
[null,null,null,null,null,null,null,null,null,null,null,null,null,null,null,""]
[null,null,null,null,null,null,null,null,null,null,null,null,null,null,null,""]
[null,null,null,null,null,null,null,null,null,null,null,null,null,null,null,""]
[null,null,null,null,null,null,null,null,null,null,null,null,null,null,null,""]
[null,null,null,null,null,null,null,null,null,null,null,null,null,null,null,""]
[null,null,null,null,null,null,null,null,null,null,null,null,null,null,null,""]
[null,null,null,null,null,null,null,null,null,null,null,null,null,null,null,""]
[null,null,null,null,null,null,null,null,null,null,null,null,null,null,null,""]
[null,null,null,null,null,null,null,null,null,null,null,null,null,null,null,""]
[null,null,null,null,null,null,null,null,null,null,null,null,null,null,null,""]
[null,null,null,null,null,null,null,null,null,null,null,null,null,null,null,""]
[null,null,null,null,null,null,null,null,null,null,null,null,null,null,null,""]
[null,null,null,null,null,null,null,null,null,null,null,null,null,null,null,""]
[null,null,null,null,null,null,null,null,null,null,null,null,null,null,null,""]
[null,null,null,null,null,null,null,null,null,null,null,null,null,null,null,""]
[null,null,null,null,null,null,null,null,null,null,null,null,null,null,null,""]
[null,null,null,null,null,null,null,null,null,null,null,null,null,null,null,""]
[null,null,null,null,null,null,null,null,null,null,null,null,null,null,null,""]
[null,null,null,null,null,null,null,null,null,null,null,null,null,null,null,""]
[null,null,null,null,null,null,null,null,null,null,null,null,null,null,null,""]
[null,null,null,null,null,null,null,null,null,null,null,null,null,null,null,""]
[null,null,null,null,null,null,null,null,null,null,null,null,null,null,null,""]
[null,null,null,null,null,null,null,null,null,null,null,null,null,null,null,""]
[null,null,null,null,null,null,null,null,null,null,null,null,null,null,null,""]
[null,null,null,null,null,null,null,null,null,null,null,null,null,null,null,""]
[null,null,null,null,null,null,null,null,null,null,null,null,null,null,null,""]
[null,null,null,null,null,null,null,null,null,null,null,null,null,null,null,""]
[null,null,null,null,null,null,null,null,null,null,null,null,null,null,null,""]
[null,null,null,null,null,null,null,null,null,null,null,null,null,null,null,""]
[null,null,null,null,null,null,null,null,null,null,null,null,null,null,null,""]
[null,null,null,null,null,null,null,null,null,null,null,null,null,null,null,""]
[null,null,null,null,null,null,null,null,null,null,null,null,null,null,null,""]
[null,null,null,null,null,null,null,null,null,null,null,null,null,null,null,""]
[null,null,null,null,null,null,null,null,null,null,null,null,null,null,null,""]
[null,null,null,null,null,null,null,null,null,null,null,null,null,null,null,""]
[null,null,null,null,null,null,null,null,null,null,null,null,null,null,null,""]
[null,null,null,null,null,null,null,null,null,null,null,null,null,null,null,""]
[null,null,null,null,null,null,null,null,null,null,null,null,null,null,null,{"$f":"IF(K397=\"\",\"\",(N397/K397) )","v":""}]
[null,null,null,null,null,null,null,null,null,null,null,null,null,null,null,""]
[null,null,null,null,null,null,null,null,null,null,null,null,null,null,null,""]
[null,null,null,null,null,null,null,null,null,null,null,null,null,null,null,""]
[null,null,null,null,null,null,null,null,null,null,null,null,null,null,null,""]
[null,null,null,null,null,null,null,null,null,null,null,null,null,null,null,""]
[null,null,null,null,null,null,null,null,null,null,null,null,null,null,null,""]
[null,null,null,null,null,null,null,null,null,null,null,null,null,null,null,""]
[null,null,null,null,null,null,null,null,null,null,null,null,null,null,null,""]
[null,null,null,null,null,null,null,null,null,null,null,null,null,null,null,""]
[null,null,null,null,null,null,null,null,null,null,null,null,null,null,null,""]
[null,null,null,null,null,null,null,null,null,null,null,null,null,null,null,""]
[null,null,null,null,null,null,null,null,null,null,null,null,null,null,null,""]
[null,null,null,null,null,null,null,null,null,null,null,null,null,null,null,""]
[null,null,null,null,null,null,null,null,null,null,null,null,null,null,null,""]
[null,null,null,null,null,null,null,null,null,null,null,null,null,null,null,""]
[null,null,null,null,null,null,null,null,null,null,null,null,null,null,null,""]
[null,null,null,null,null,null,null,null,null,null,null,null,null,null,null,""]
[null,null,null,null,null,null,null,null,null,null,null,null,null,null,null,""]
[null,null,null,null,null,null,null,null,null,null,null,null,null,null,null,""]
[null,null,null,null,null,null,null,null,null,null,null,null,null,null,null,""]
[null,null,null,null,null,null,null,null,null,null,null,null,null,null,null,""]
[null,null,null,null,null,null,null,null,null,null,null,null,null,null,null,""]
[null,null,null,null,null,null,null,null,null,null,null,null,null,null,null,""]
[null,null,null,null,null,null,null,null,null,null,null,null,null,null,null,""]
[null,null,null,null,null,null,null,null,null,null,null,null,null,null,null,""]
[null,null,null,null,null,null,null,null,null,null,null,null,null,null,null,""]
[null,null,null,null,null,null,null,null,null,null,null,null,null,null,null,""]
[null,null,null,null,null,null,null,null,null,null,null,null,null,null,null,""]
[null,null,null,null,null,null,null,null,null,null,null,null,null,null,null,""]
[null,null,null,null,null,null,null,null,null,null,null,null,null,null,null,""]
[null,null,null,null,null,null,null,null,null,null,null,null,null,null,null,""]
[null,null,null,null,null,null,null,null,null,null,null,null,null,null,null,""]
[null,null,null,null,null,null,null,null,null,null,null,null,null,null,null,""]
[null,null,null,null,null,null,null,null,null,null,null,null,null,null,null,""]
[null,null,null,null,null,null,null,null,null,null,null,null,null,null,null,""]
[null,null,null,null,null,null,null,null,null,null,null,null,null,null,null,""]
[null,null,null,null,null,null,null,null,null,null,null,null,null,null,null,""]
[null,null,null,null,null,null,null,null,null,null,null,null,null,null,null,""]
[null,null,null,null,null,null,null,null,null,null,null,null,null,null,null,""]
[null,null,null,null,null,null,null,null,null,null,null,null,null,null,null,""]
[null,null,null,null,null,null,null,null,null,null,null,null,null,null,null,""]
[null,null,null,null,null,null,null,null,null,null,null,null,null,null,null,""]
[null,null,null,null,null,null,null,null,null,null,null,null,null,null,null,""]
[null,null,null,null,null,null,null,null,null,null,null,null,null,null,null,""]
[null,null,null,null,null,null,null,null,null,null,null,null,null,null,null,""]
[null,null,null,null,null,null,null,null,null,null,null,null,null,null,null,""]
[null,null,null,null,null,null,null,null,null,null,null,null,null,null,null,""]
[null,null,null,null,null,null,null,null,null,null,null,null,null,null,null,""]
[null,null,null,null,null,null,null,null,null,null,null,null,null,null,null,""]
[null,null,null,null,null,null,null,null,null,null,null,null,null,null,null,""]
[null,null,null,null,null,null,null,null,null,null,null,null,null,null,null,""]
[null,null,null,null,null,null,null,null,null,null,null,null,null,null,null,""]
[null,null,null,null,null,null,null,null,null,null,null,null,null,null,null,""]
[null,null,null,null,null,null,null,null,null,null,null,null,null,null,null,""]
[null,null,null,null,null,null,null,null,null,null,null,null,null,null,null,""]
[null,null,null,null,null,null,null,null,null,null,null,null,null,null,null,""]
[null,null,null,null,null,null,null,null,null,null,null,null,null,null,null,""]
[null,null,null,null,null,null,null,null,null,null,null,null,null,null,null,""]
[null,null,null,null,null,null,null,null,null,null,null,null,null,null,null,""]
[null,null,null,null,null,null,null,null,null,null,null,null,null,null,null,""]
[null,null,null,null,null,null,null,null,null,null,null,null,null,null,null,""]
[null,null,null,null,null,null,null,null,null,null,null,null,null,null,null,""]
[null,null,null,null,null,null,null,null,null,null,null,null,null,null,null,""]
[null,null,null,null,null,null,null,null,null,null,null,null,null,null,null,{"$f":"IF(K461=\"\",\"\",(N461/K461) )","v":""}]
[null,null,null,null,null,null,null,null,null,null,null,null,null,null,null,""]
[null,null,null,null,null,null,null,null,null,null,null,null,null,null,null,""]
[null,null,null,null,null,null,null,null,null,null,null,null,null,null,null,""]
[null,null,null,null,null,null,null,null,null,null,null,null,null,null,null,""]
[null,null,null,null,null,null,null,null,null,null,null,null,null,null,null,""]
[null,null,null,null,null,null,null,null,null,null,null,null,null,null,null,""]
[null,null,null,null,null,null,null,null,null,null,null,null,null,null,null,""]
[null,null,null,null,null,null,null,null,null,null,null,null,null,null,null,""]
[null,null,null,null,null,null,null,null,null,null,null,null,null,null,null,""]
[null,null,null,null,null,null,null,null,null,null,null,null,null,null,null,""]
[null,null,null,null,null,null,null,null,null,null,null,null,null,null,null,""]
[null,null,null,null,null,null,null,null,null,null,null,null,null,null,null,""]
[null,null,null,null,null,null,null,null,null,null,null,null,null,null,null,""]
[null,null,null,null,null,null,null,null,null,null,null,null,null,null,null,""]
[null,null,null,null,null,null,null,null,null,null,null,null,null,null,null,""]
[null,null,null,null,null,null,null,null,null,null,null,null,null,null,null,""]
[null,null,null,null,null,null,null,null,null,null,null,null,null,null,null,""]
[null,null,null,null,null,null,null,null,null,null,null,null,null,null,null,""]
[null,null,null,null,null,null,null,null,null,null,null,null,null,null,null,""]
[null,null,null,null,null,null,null,null,null,null,null,null,null,null,null,""]
[null,null,null,null,null,null,null,null,null,null,null,null,null,null,null,""]
[null,null,null,null,null,null,null,null,null,null,null,null,null,null,null,""]
[null,null,null,null,null,null,null,null,null,null,null,null,null,null,null,""]
[null,null,null,null,null,null,null,null,null,null,null,null,null,null,null,""]
[null,null,null,null,null,null,null,null,null,null,null,null,null,null,null,""]
[null,null,null,null,null,null,null,null,null,null,null,null,null,null,null,""]
[null,null,null,null,null,null,null,null,null,null,null,null,null,null,null,""]
[null,null,null,null,null,null,null,null,null,null,null,null,null,null,null,""]
[null,null,null,null,null,null,null,null,null,null,null,null,null,null,null,""]
[null,null,null,null,null,null,null,null,null,null,null,null,null,null,null,""]
[null,null,null,null,null,null,null,null,null,null,null,null,null,null,null,""]
[null,null,null,null,null,null,null,null,null,null,null,null,null,null,null,""]
[null,null,null,null,null,null,null,null,null,null,null,null,null,null,null,""]
[null,null,null,null,null,null,null,null,null,null,null,null,null,null,null,""]
[null,null,null,null,null,null,null,null,null,null,null,null,null,null,null,""]
[null,null,null,null,null,null,null,null,null,null,null,null,null,null,null,""]
[null,null,null,null,null,null,null,null,null,null,null,null,null,null,null,""]
[null,null,null,null,null,null,null,null,null,null,null,null,null,null,null,""]
[null,null,null,null,null,null,null,null,null,null,null,null,null,null,null,""]
[null,null,null,null,null,null,null,null,null,null,null,null,null,null,null,""]
[null,null,null,null,null,null,null,null,null,null,null,null,null,null,null,""]
[null,null,null,null,null,null,null,null,null,null,null,null,null,null,null,""]
[null,null,null,null,null,null,null,null,null,null,null,null,null,null,null,""]
[null,null,null,null,null,null,null,null,null,null,null,null,null,null,null,""]
[null,null,null,null,null,null,null,null,null,null,null,null,null,null,null,""]
[null,null,null,null,null,null,null,null,null,null,null,null,null,null,null,""]
[null,null,null,null,null,null,null,null,null,null,null,null,null,null,null,""]
[null,null,null,null,null,null,null,null,null,null,null,null,null,null,null,""]
[null,null,null,null,null,null,null,null,null,null,null,null,null,null,null,""]
[null,null,null,null,null,null,null,null,null,null,null,null,null,null,null,""]
[null,null,null,null,null,null,null,null,null,null,null,null,null,null,null,""]
[null,null,null,null,null,null,null,null,null,null,null,null,null,null,null,""]
[null,null,null,null,null,null,null,null,null,null,null,null,null,null,null,""]
[null,null,null,null,null,null,null,null,null,null,null,null,null,null,null,""]
[null,null,null,null,null,null,null,null,null,null,null,null,null,null,null,""]
[null,null,null,null,null,null,null,null,null,null,null,null,null,null,null,""]
[null,null,null,null,null,null,null,null,null,null,null,null,null,null,null,""]
[null,null,null,null,null,null,null,null,null,null,null,null,null,null,null,""]
[null,null,null,null,null,null,null,null,null,null,null,null,null,null,null,""]
[null,null,null,null,null,null,null,null,null,null,null,null,null,null,null,""]
[null,null,null,null,null,null,null,null,null,null,null,null,null,null,null,""]
[null,null,null,null,null,null,null,null,null,null,null,null,null,null,null,""]
[null,null,null,null,null,null,null,null,null,null,null,null,null,null,null,""]
[null,null,null,null,null,null,null,null,null,null,null,null,null,null,null,{"$f":"IF(K525=\"\",\"\",(N525/K525) )","v":""}]
[null,null,null,null,null,null,null,null,null,null,null,null,null,null,null,""]
[null,null,null,null,null,null,null,null,null,null,null,null,null,null,null,""]
[null,null,null,null,null,null,null,null,null,null,null,null,null,null,null,""]
[null,null,null,null,null,null,null,null,null,null,null,null,null,null,null,""]
[null,null,null,null,null,null,null,null,null,null,null,null,null,null,null,""]
[null,null,null,null,null,null,null,null,null,null,null,null,null,null,null,""]
[null,null,null,null,null,null,null,null,null,null,null,null,null,null,null,""]
[null,null,null,null,null,null,null,null,null,null,null,null,null,null,null,""]
[null,null,null,null,null,null,null,null,null,null,null,null,null,null,null,""]
[null,null,null,null,null,null,null,null,null,null,null,null,null,null,null,""]
[null,null,null,null,null,null,null,null,null,null,null,null,null,null,null,""]
[null,null,null,null,null,null,null,null,null,null,null,null,null,null,null,""]
[null,null,null,null,null,null,null,null,null,null,null,null,null,null,null,""]
[null,null,null,null,null,null,null,null,null,null,null,null,null,null,null,""]
[null,null,null,null,null,null,null,null,null,null,null,null,null,null,null,""]
[null,null,null,null,null,null,null,null,null,null,null,null,null,null,null,""]
[null,null,null,null,null,null,null,null,null,null,null,null,null,null,null,""]
[null,null,null,null,null,null,null,null,null,null,null,null,null,null,null,""]
[null,null,null,null,null,null,null,null,null,null,null,null,null,null,null,""]
[null,null,null,null,null,null,null,null,null,null,null,null,null,null,null,""]
[null,null,null,null,null,null,null,null,null,null,null,null,null,null,null,""]
[null,null,null,null,null,null,null,null,null,null,null,null,null,null,null,""]
[null,null,null,null,null,null,null,null,null,null,null,null,null,null,null,""]
[null,null,null,null,null,null,null,null,null,null,null,null,null,null,null,""]
[null,null,null,null,null,null,null,null,null,null,null,null,null,null,null,""]
[null,null,null,null,null,null,null,null,null,null,null,null,null,null,null,""]
[null,null,null,null,null,null,null,null,null,null,null,null,null,null,null,""]
[null,null,null,null,null,null,null,null,null,null,null,null,null,null,null,""]
[null,null,null,null,null,null,null,null,null,null,null,null,null,null,null,""]
[null,null,null,null,null,null,null,null,null,null,null,null,null,null,null,""]
[null,null,null,null,null,null,null,null,null,null,null,null,null,null,null,""]
[null,null,null,null,null,null,null,null,null,null,null,null,null,null,null,{"$f":"IF(K557=\"\",\"\",(N557/K557) )","v":""}]
[null,null,null,null,null,null,null,null,null,null,null,null,null,null,null,""]
[null,null,null,null,null,null,null,null,null,null,null,null,null,null,null,""]
[null,null,null,null,null,null,null,null,null,null,null,null,null,null,null,""]
[null,null,null,null,null,null,null,null,null,null,null,null,null,null,null,""]
[null,null,null,null,null,null,null,null,null,null,null,null,null,null,null,""]
[null,null,null,null,null,null,null,null,null,null,null,null,null,null,null,""]
[null,null,null,null,null,null,null,null,null,null,null,null,null,null,null,""]
[null,null,null,null,null,null,null,null,null,null,null,null,null,null,null,""]
[null,null,null,null,null,null,null,null,null,null,null,null,null,null,null,""]
[null,null,null,null,null,null,null,null,null,null,null,null,null,null,null,""]
[null,null,null,null,null,null,null,null,null,null,null,null,null,null,null,""]
[null,null,null,null,null,null,null,null,null,null,null,null,null,null,null,""]
[null,null,null,null,null,null,null,null,null,null,null,null,null,null,null,""]
[null,null,null,null,null,null,null,null,null,null,null,null,null,null,null,""]
[null,null,null,null,null,null,null,null,null,null,null,null,null,null,null,""]
[null,null,null,null,null,null,null,null,null,null,null,null,null,null,null,""]
[null,null,null,null,null,null,null,null,null,null,null,null,null,null,null,""]
[null,null,null,null,null,null,null,null,null,null,null,null,null,null,null,""]
[null,null,null,null,null,null,null,null,null,null,null,null,null,null,null,""]
[null,null,null,null,null,null,null,null,null,null,null,null,null,null,null,""]
[null,null,null,null,null,null,null,null,null,null,null,null,null,null,null,""]
[null,null,null,null,null,null,null,null,null,null,null,null,null,null,null,""]
[null,null,null,null,null,null,null,null,null,null,null,null,null,null,null,""]
[null,null,null,null,null,null,null,null,null,null,null,null,null,null,null,""]
[null,null,null,null,null,null,null,null,null,null,null,null,null,null,null,""]
[null,null,null,null,null,null,null,null,null,null,null,null,null,null,null,""]
[null,null,null,null,null,null,null,null,null,null,null,null,null,null,null,""]
[null,null,null,null,null,null,null,null,null,null,null,null,null,null,null,""]
[null,null,null,null,null,null,null,null,null,null,null,null,null,null,null,""]
[null,null,null,null,null,null,null,null,null,null,null,null,null,null,null,""]
[null,null,null,null,null,null,null,null,null,null,null,null,null,null,null,""]
[null,null,null,null,null,null,null,null,null,null,null,null,null,null,null,{"$f":"IF(K589=\"\",\"\",(N589/K589) )","v":""}]
[null,null,null,null,null,null,null,null,null,null,null,null,null,null,null,""]
[null,null,null,null,null,null,null,null,null,null,null,null,null,null,null,""]
[null,null,null,null,null,null,null,null,null,null,null,null,null,null,null,""]
[null,null,null,null,null,null,null,null,null,null,null,null,null,null,null,""]
[null,null,null,null,null,null,null,null,null,null,null,null,null,null,null,""]
[null,null,null,null,null,null,null,null,null,null,null,null,null,null,null,""]
[null,null,null,null,null,null,null,null,null,null,null,null,null,null,null,""]
[null,null,null,null,null,null,null,null,null,null,null,null,null,null,null,""]
[null,null,null,null,null,null,null,null,null,null,null,null,null,null,null,""]
[null,null,null,null,null,null,null,null,null,null,null,null,null,null,null,""]
[null,null,null,null,null,null,null,null,null,null,null,null,null,null,null,""]
[null,null,null,null,null,null,null,null,null,null,null,null,null,null,null,""]
[null,null,null,null,null,null,null,null,null,null,null,null,null,null,null,""]
[null,null,null,null,null,null,null,null,null,null,null,null,null,null,null,""]
[null,null,null,null,null,null,null,null,null,null,null,null,null,null,null,""]
[null,null,null,null,null,null,null,null,null,null,null,null,null,null,null,""]
[null,null,null,null,null,null,null,null,null,null,null,null,null,null,null,""]
[null,null,null,null,null,null,null,null,null,null,null,null,null,null,null,""]
[null,null,null,null,null,null,null,null,null,null,null,null,null,null,null,""]
[null,null,null,null,null,null,null,null,null,null,null,null,null,null,null,""]
[null,null,null,null,null,null,null,null,null,null,null,null,null,null,null,""]
[null,null,null,null,null,null,null,null,null,null,null,null,null,null,null,""]
[null,null,null,null,null,null,null,null,null,null,null,null,null,null,null,""]
[null,null,null,null,null,null,null,null,null,null,null,null,null,null,null,""]
[null,null,null,null,null,null,null,null,null,null,null,null,null,null,null,""]
[null,null,null,null,null,null,null,null,null,null,null,null,null,null,null,""]
[null,null,null,null,null,null,null,null,null,null,null,null,null,null,null,""]
[null,null,null,null,null,null,null,null,null,null,null,null,null,null,null,""]
[null,null,null,null,null,null,null,null,null,null,null,null,null,null,null,""]
[null,null,null,null,null,null,null,null,null,null,null,null,null,null,null,""]
[null,null,null,null,null,null,null,null,null,null,null,null,null,null,null,""]
[null,null,null,null,null,null,null,null,null,null,null,null,null,null,null,""]
[null,null,null,null,null,null,null,null,null,null,null,null,null,null,null,""]
[null,null,null,null,null,null,null,null,null,null,null,null,null,null,null,""]
[null,null,null,null,null,null,null,null,null,null,null,null,null,null,null,""]
[null,null,null,null,null,null,null,null,null,null,null,null,null,null,null,""]
[null,null,null,null,null,null,null,null,null,null,null,null,null,null,null,""]
[null,null,null,null,null,null,null,null,null,null,null,null,null,null,null,""]
[null,null,null,null,null,null,null,null,null,null,null,null,null,null,null,""]
[null,null,null,null,null,null,null,null,null,null,null,null,null,null,null,""]
[null,null,null,null,null,null,null,null,null,null,null,null,null,null,null,""]
[null,null,null,null,null,null,null,null,null,null,null,null,null,null,null,""]
[null,null,null,null,null,null,null,null,null,null,null,null,null,null,null,""]
[null,null,null,null,null,null,null,null,null,null,null,null,null,null,null,""]
[null,null,null,null,null,null,null,null,null,null,null,null,null,null,null,""]
[null,null,null,null,null,null,null,null,null,null,null,null,null,null,null,""]
[null,null,null,null,null,null,null,null,null,null,null,null,null,null,null,""]
[null,null,null,null,null,null,null,null,null,null,null,null,null,null,null,""]
[null,null,null,null,null,null,null,null,null,null,null,null,null,null,null,""]
[null,null,null,null,null,null,null,null,null,null,null,null,null,null,null,""]
[null,null,null,null,null,null,null,null,null,null,null,null,null,null,null,""]
[null,null,null,null,null,null,null,null,null,null,null,null,null,null,null,""]
[null,null,null,null,null,null,null,null,null,null,null,null,null,null,null,""]
[null,null,null,null,null,null,null,null,null,null,null,null,null,null,null,""]
[null,null,null,null,null,null,null,null,null,null,null,null,null,null,null,""]
[null,null,null,null,null,null,null,null,null,null,null,null,null,null,null,""]
[null,null,null,null,null,null,null,null,null,null,null,null,null,null,null,""]
[null,null,null,null,null,null,null,null,null,null,null,null,null,null,null,""]
[null,null,null,null,null,null,null,null,null,null,null,null,null,null,null,""]
[null,null,null,null,null,null,null,null,null,null,null,null,null,null,null,""]
[null,null,null,null,null,null,null,null,null,null,null,null,null,null,null,""]
[null,null,null,null,null,null,null,null,null,null,null,null,null,null,null,""]
[null,null,null,null,null,null,null,null,null,null,null,null,null,null,null,""]
[null,null,null,null,null,null,null,null,null,null,null,null,null,null,null,{"$f":"IF(K653=\"\",\"\",(N653/K653) )","v":""}]
[null,null,null,null,null,null,null,null,null,null,null,null,null,null,null,""]
[null,null,null,null,null,null,null,null,null,null,null,null,null,null,null,""]
[null,null,null,null,null,null,null,null,null,null,null,null,null,null,null,""]
[null,null,null,null,null,null,null,null,null,null,null,null,null,null,null,""]
[null,null,null,null,null,null,null,null,null,null,null,null,null,null,null,""]
[null,null,null,null,null,null,null,null,null,null,null,null,null,null,null,""]
[null,null,null,null,null,null,null,null,null,null,null,null,null,null,null,""]
[null,null,null,null,null,null,null,null,null,null,null,null,null,null,null,""]
[null,null,null,null,null,null,null,null,null,null,null,null,null,null,null,""]
[null,null,null,null,null,null,null,null,null,null,null,null,null,null,null,""]
[null,null,null,null,null,null,null,null,null,null,null,null,null,null,null,""]
[null,null,null,null,null,null,null,null,null,null,null,null,null,null,null,""]
[null,null,null,null,null,null,null,null,null,null,null,null,null,null,null,""]
[null,null,null,null,null,null,null,null,null,null,null,null,null,null,null,""]
[null,null,null,null,null,null,null,null,null,null,null,null,null,null,null,""]
[null,null,null,null,null,null,null,null,null,null,null,null,null,null,null,""]
[null,null,null,null,null,null,null,null,null,null,null,null,null,null,null,""]
[null,null,null,null,null,null,null,null,null,null,null,null,null,null,null,""]
[null,null,null,null,null,null,null,null,null,null,null,null,null,null,null,""]
[null,null,null,null,null,null,null,null,null,null,null,null,null,null,null,""]
[null,null,null,null,null,null,null,null,null,null,null,null,null,null,null,""]
[null,null,null,null,null,null,null,null,null,null,null,null,null,null,null,""]
[null,null,null,null,null,null,null,null,null,null,null,null,null,null,null,""]
[null,null,null,null,null,null,null,null,null,null,null,null,null,null,null,""]
[null,null,null,null,null,null,null,null,null,null,null,null,null,null,null,""]
[null,null,null,null,null,null,null,null,null,null,null,null,null,null,null,""]
[null,null,null,null,null,null,null,null,null,null,null,null,null,null,null,""]
[null,null,null,null,null,null,null,null,null,null,null,null,null,null,null,""]
[null,null,null,null,null,null,null,null,null,null,null,null,null,null,null,""]
[null,null,null,null,null,null,null,null,null,null,null,null,null,null,null,""]
[null,null,null,null,null,null,null,null,null,null,null,null,null,null,null,""]
[null,null,null,null,null,null,null,null,null,null,null,null,null,null,null,""]
[null,null,null,null,null,null,null,null,null,null,null,null,null,null,null,""]
[null,null,null,null,null,null,null,null,null,null,null,null,null,null,null,""]
[null,null,null,null,null,null,null,null,null,null,null,null,null,null,null,""]
[null,null,null,null,null,null,null,null,null,null,null,null,null,null,null,""]
[null,null,null,null,null,null,null,null,null,null,null,null,null,null,null,""]
[null,null,null,null,null,null,null,null,null,null,null,null,null,null,null,""]
[null,null,null,null,null,null,null,null,null,null,null,null,null,null,null,""]
[null,null,null,null,null,null,null,null,null,null,null,null,null,null,null,""]
[null,null,null,null,null,null,null,null,null,null,null,null,null,null,null,""]
[null,null,null,null,null,null,null,null,null,null,null,null,null,null,null,""]
[null,null,null,null,null,null,null,null,null,null,null,null,null,null,null,""]
[null,null,null,null,null,null,null,null,null,null,null,null,null,null,null,""]
[null,null,null,null,null,null,null,null,null,null,null,null,null,null,null,""]
[null,null,null,null,null,null,null,null,null,null,null,null,null,null,null,""]
[null,null,null,null,null,null,null,null,null,null,null,null,null,null,null,""]
[null,null,null,null,null,null,null,null,null,null,null,null,null,null,null,""]
[null,null,null,null,null,null,null,null,null,null,null,null,null,null,null,""]
[null,null,null,null,null,null,null,null,null,null,null,null,null,null,null,""]
[null,null,null,null,null,null,null,null,null,null,null,null,null,null,null,""]
[null,null,null,null,null,null,null,null,null,null,null,null,null,null,null,""]
[null,null,null,null,null,null,null,null,null,null,null,null,null,null,null,""]
[null,null,null,null,null,null,null,null,null,null,null,null,null,null,null,""]
[null,null,null,null,null,null,null,null,null,null,null,null,null,null,null,""]
[null,null,null,null,null,null,null,null,null,null,null,null,null,null,null,""]
[null,null,null,null,null,null,null,null,null,null,null,null,null,null,null,""]
[null,null,null,null,null,null,null,null,null,null,null,null,null,null,null,""]
[null,null,null,null,null,null,null,null,null,null,null,null,null,null,null,""]
[null,null,null,null,null,null,null,null,null,null,null,null,null,null,null,""]
[null,null,null,null,null,null,null,null,null,null,null,null,null,null,null,""]
[null,null,null,null,null,null,null,null,null,null,null,null,null,null,null,""]
[null,null,null,null,null,null,null,null,null,null,null,null,null,null,null,""]
[null,null,null,null,null,null,null,null,null,null,null,null,null,null,null,{"$f":"IF(K717=\"\",\"\",(N717/K717) )","v":""}]
[null,null,null,null,null,null,null,null,null,null,null,null,null,null,null,""]
[null,null,null,null,null,null,null,null,null,null,null,null,null,null,null,""]
[null,null,null,null,null,null,null,null,null,null,null,null,null,null,null,""]
[null,null,null,null,null,null,null,null,null,null,null,null,null,null,null,""]
[null,null,null,null,null,null,null,null,null,null,null,null,null,null,null,""]
[null,null,null,null,null,null,null,null,null,null,null,null,null,null,null,""]
[null,null,null,null,null,null,null,null,null,null,null,null,null,null,null,""]
[null,null,null,null,null,null,null,null,null,null,null,null,null,null,null,""]
[null,null,null,null,null,null,null,null,null,null,null,null,null,null,null,""]
[null,null,null,null,null,null,null,null,null,null,null,null,null,null,null,""]
[null,null,null,null,null,null,null,null,null,null,null,null,null,null,null,""]
[null,null,null,null,null,null,null,null,null,null,null,null,null,null,null,""]
[null,null,null,null,null,null,null,null,null,null,null,null,null,null,null,""]
[null,null,null,null,null,null,null,null,null,null,null,null,null,null,null,""]
[null,null,null,null,null,null,null,null,null,null,null,null,null,null,null,""]
[null,null,null,null,null,null,null,null,null,null,null,null,null,null,null,""]
[null,null,null,null,null,null,null,null,null,null,null,null,null,null,null,""]
[null,null,null,null,null,null,null,null,null,null,null,null,null,null,null,""]
[null,null,null,null,null,null,null,null,null,null,null,null,null,null,null,""]
[null,null,null,null,null,null,null,null,null,null,null,null,null,null,null,""]
[null,null,null,null,null,null,null,null,null,null,null,null,null,null,null,""]
[null,null,null,null,null,null,null,null,null,null,null,null,null,null,null,""]
[null,null,null,null,null,null,null,null,null,null,null,null,null,null,null,""]
[null,null,null,null,null,null,null,null,null,null,null,null,null,null,null,""]
[null,null,null,null,null,null,null,null,null,null,null,null,null,null,null,""]
[null,null,null,null,null,null,null,null,null,null,null,null,null,null,null,""]
[null,null,null,null,null,null,null,null,null,null,null,null,null,null,null,""]
[null,null,null,null,null,null,null,null,null,null,null,null,null,null,null,""]
[null,null,null,null,null,null,null,null,null,null,null,null,null,null,null,""]
[null,null,null,null,null,null,null,null,null,null,null,null,null,null,null,""]
[null,null,null,null,null,null,null,null,null,null,null,null,null,null,null,""]
[null,null,null,null,null,null,null,null,null,null,null,null,null,null,null,""]
[null,null,null,null,null,null,null,null,null,null,null,null,null,null,null,""]
[null,null,null,null,null,null,null,null,null,null,null,null,null,null,null,""]
[null,null,null,null,null,null,null,null,null,null,null,null,null,null,null,""]
[null,null,null,null,null,null,null,null,null,null,null,null,null,null,null,""]
[null,null,null,null,null,null,null,null,null,null,null,null,null,null,null,""]
[null,null,null,null,null,null,null,null,null,null,null,null,null,null,null,""]
[null,null,null,null,null,null,null,null,null,null,null,null,null,null,null,""]
[null,null,null,null,null,null,null,null,null,null,null,null,null,null,null,""]
[null,null,null,null,null,null,null,null,null,null,null,null,null,null,null,""]
[null,null,null,null,null,null,null,null,null,null,null,null,null,null,null,""]
[null,null,null,null,null,null,null,null,null,null,null,null,null,null,null,""]
[null,null,null,null,null,null,null,null,null,null,null,null,null,null,null,""]
[null,null,null,null,null,null,null,null,null,null,null,null,null,null,null,""]
[null,null,null,null,null,null,null,null,null,null,null,null,null,null,null,""]
[null,null,null,null,null,null,null,null,null,null,null,null,null,null,null,""]
[null,null,null,null,null,null,null,null,null,null,null,null,null,null,null,""]
[null,null,null,null,null,null,null,null,null,null,null,null,null,null,null,""]
[null,null,null,null,null,null,null,null,null,null,null,null,null,null,null,""]
[null,null,null,null,null,null,null,null,null,null,null,null,null,null,null,""]
[null,null,null,null,null,null,null,null,null,null,null,null,null,null,null,""]
[null,null,null,null,null,null,null,null,null,null,null,null,null,null,null,""]
[null,null,null,null,null,null,null,null,null,null,null,null,null,null,null,""]
[null,null,null,null,null,null,null,null,null,null,null,null,null,null,null,""]
[null,null,null,null,null,null,null,null,null,null,null,null,null,null,null,""]
[null,null,null,null,null,null,null,null,null,null,null,null,null,null,null,""]
[null,null,null,null,null,null,null,null,null,null,null,null,null,null,null,""]
[null,null,null,null,null,null,null,null,null,null,null,null,null,null,null,""]

{"sheet":"Signature","index":3,"n_rows":2,"n_cols":5,"rows_kept":2,"cut":false,"hidden":false,"merged":[]}
["Cliquez ICI"]
[null,null,null,null,"SIGNATURE"]

{"sheet":"Financement","index":4,"n_rows":111,"n_cols":19,"rows_kept":111,"cut":false,"hidden":false,"merged":[]}
["Bon de commande","Nom","Prix de vente","Montant à financer","Magasin","TAEG ou 0%","Agios","Société de crédit","Fax/Mail Communication","Date envoi","Vendeur",null,"Envoyé BC - Contrat CI-CB","Contr.Seul ou av.FdL","Argent sur le compte ?","OK ?","Date réception argent","Date ou OK","Date"]
[]
["AIS-153","Lekeu Marcel",3000,3000,"Aiseau Presles",{"$f":"IF(A3=\"\",\"\",IF(G3>0,\"0%\",\"TAEG\"))","v":"TAEG"},null,null,null,"2021-02-08",null,null,"OUI"]
["AIS-154","BOON Dany",2000,2000,"Aiseau Presles","TAEG",null,null,null,"2021-02-08",null,null,"OUI"]
["AIS-155","Leclerc Roger",1000,1000,"Aiseau Presles","TAEG",null,null,null,"2021-02-08",null,null,"OUI"]
["AIS-156","KINON Bernadette",1000,1000,"Aiseau Presles","TAEG",null,null,null,"2021-02-08",null,null,"OUI"]
["AIS-157","ZANETTI Laurent",2000,2000,"Aiseau Presles","TAEG",null,null,null,"2021-02-08",null,null,"OUI"]
["AIS-158","Hugo Victor",3000,3000,"Aiseau Presles","TAEG",null,null,null,"2021-02-08",null,null,"OUI"]
["AIS-159"," ",0,0,"INSTAGRAM","TAEG",null,null,null,"2021-02-08",null,null,"OUI"]
["AIS-159"," ",0,0,"INSTAGRAM","TAEG",null,null,null,"2021-02-08",null,null,"OUI"]
["AIS-159"," ",0,0,"INSTAGRAM","TAEG",null,null,null,"2021-02-08",null,null,"OUI"]
["AIS-159","KOUSEN Daniel",3550,3550,"Jumet","0%",58.35,null,null,"2021-02-08","FRED",null,"OUI"]
["AIS-159","KOUSEN Daniel",3550,3550,"Jumet","0%",58.35,null,null,"2021-02-08","FRED",null,"OUI"]
["AIS-160","Kousen Daniel",2995,2500,"Dinant","0%",35.28,null,null,"2021-02-08","DORIAN",null,"OUI"]
["AIS-161","KOUSEN Daniel",2595,2300,"Dinant","0%",25.38,null,null,"2021-02-10","DORIAN",null,"OUI"]
["AIS-162","KOUSEN Daniel",3500,3300,"Dinant","0%",25.33,null,null,"2021-02-15",null,null,"OUI"]
["AIS-163","THONet Victor",1999,1700,"Dinant","0%",25.68,null,null,"2021-02-15","AXEL",null,"OUI"]
["AIS-164"," ",1000,1000,"Dinant","0%",40.58,null,null,"2021-02-15",null,null,"OUI"]
["AIS-165","Bonaparte Napoléon",676.05,699,"Dinant","0%",22.95,null,null,"2021-02-15","DORIAN",null,"OUI"]
["AIS-166","THONET Denise",4892.45,null,"Dinant","0%",102.55,"CETELEM","15-02-21 FRED","2021-02-15","FRED",null,"OUI"]
["AIS-167","Legrand Léon",2454.04,null,"Dinant","0%",45.96,"COFIDIS","15-02-21 FRED","2021-02-15","FRED",null,"OUI"]
[null,null,null,null,null,""]
[null,null,null,null,null,""]
[null,null,null,null,null,""]
[null,null,null,null,null,""]
[null,null,null,null,null,""]
[null,null,null,null,null,""]
[null,null,null,null,null,""]
[null,null,null,null,null,""]
[null,null,null,null,null,""]
[null,null,null,null,null,""]
[null,null,null,null,null,""]
[null,null,null,null,null,""]
[null,null,null,null,null,""]
[null,null,null,null,null,""]
[null,null,null,null,null,""]
[null,null,null,null,null,""]
[null,null,null,null,null,""]
[null,null,null,null,null,""]
[null,null,null,null,null,""]
[null,null,null,null,null,""]
[null,null,null,null,null,""]
[null,null,null,null,null,""]
[null,null,null,null,null,""]
[null,null,null,null,null,""]
[null,null,null,null,null,""]
[null,null,null,null,null,""]
[null,null,null,null,null,""]
[null,null,null,null,null,""]
[null,null,null,null,null,""]
[null,null,null,null,null,""]
[null,null,null,null,null,""]
[null,null,null,null,null,""]
[null,null,null,null,null,""]
[null,null,null,null,null,""]
[null,null,null,null,null,""]
[null,null,null,null,null,""]
[null,null,null,null,null,""]
[null,null,null,null,null,""]
[null,null,null,null,null,""]
[null,null,null,null,null,""]
[null,null,null,null,null,""]
[null,null,null,null,null,""]
[null,null,null,null,null,""]
[null,null,null,null,null,""]
[null,null,null,null,null,""]
[null,null,null,null,null,{"$f":"IF(A67=\"\",\"\",IF(G67>0,\"0%\",\"TAEG\"))","v":""}]
[null,null,null,null,null,""]
[null,null,null,null,null,""]
[null,null,null,null,null,""]
[null,null,null,null,null,""]
[null,null,null,null,null,""]
[null,null,null,null,null,""]
[null,null,null,null,null,""]
[null,null,null,null,null,""]
[null,null,null,null,null,""]
[null,null,null,null,null,""]
[null,null,null,null,null,""]
[null,null,null,null,null,""]
[null,null,null,null,null,""]
[null,null,null,null,null,""]
[null,null,null,null,null,""]
[null,null,null,null,null,""]
[null,null,null,null,null,""]
[null,null,null,null,null,""]
[null,null,null,null,null,""]
[null,null,null,null,null,""]
[null,null,null,null,null,""]
[null,null,null,null,null,""]
[null,null,null,null,null,""]
[null,null,null,null,null,""]
[null,null,null,null,null,""]
[null,null,null,null,null,""]
[null,null,null,null,null,""]
[null,null,null,null,null,""]
[null,null,null,null,null,""]
[null,null,null,null,null,""]
[null,null,null,null,null,""]
[null,null,null,null,null,""]
[null,null,null,null,null,""]
[null,null,null,null,null,""]
[null,null,null,null,null,""]
[null,null,null,null,null,""]
[null,null,null,null,null,""]
[null,null,null,null,null,""]
[null,null,null,null,null,""]
[null,null,null,null,null,""]
[null,null,null,null,null,""]
[null,null,null,null,null,""]
[null,null,null,null,null,""]
[null,null,null,null,null,""]

{"sheet":"Feuil1","index":5,"n_rows":0,"n_cols":0,"rows_kept":0,"cut":false,"hidden":false,"merged":[]}